Workbook

Sheet MonsterPowerUpConfig
A1: ID | B1: HeroLevel | C1: jingjie1 | D1: jingjie2 | E1: jingjie3 | I1: HPFactor | J1: ATKFactor | K1: DEFFactor | L1: HudunFactor | M1: defK | N1: GongfaLv | O1: GongfaStar | P1: FabaoLv | Q1: FabaoStar | R1: LinggenUp | S1: MPFactor
A2: int | B2: int | C2: int | D2: int | E2: int | I2: float | J2: float | K2: float | L2: float | M2: int | N2: int | O2: int | P2: int | Q2: int | R2: float | S2: float
A4: ID | B4: 玩家修为境界（等级） | C4: 大境界ID | D4: 中境界ID | E4: 小境界ID | F4: 境界名称1 | G4: 境界名称2 | H4: 境界名称3 | I4: 生命倍率 | J4: 攻击倍率 | K4: 防御倍率 | L4: 护盾倍率 | M4: 防御系数K | N4: 功法等级 | O4: 功法星级 | P4: 法宝等级 | Q4: 法宝星级 | R4: 灵根成长率 100=100% | S4: 法力倍率 | T4: 生命额外调整
A5: 1 | B5: 1 | C5: =[1]HeroPowerUpConfig!J5 -> 225 | D5: =[1]HeroPowerUpConfig!K5 -> 235 | E5: =[1]HeroPowerUpConfig!L5 -> 238 | F5: 筑基期 | G5: 前 | H5: 1 | I5: =[2]主表!P3*(1+T5) -> 5.25 | J5: =[2]主表!Q3 -> 1.05 | K5: =[2]主表!R3 -> 1.05 | L5: =[2]主表!S3 -> 0 | M5: =[2]主表!$G3 -> 210 | N5: 1 | O5: 1 | P5: 1 | Q5: 1 | R5: 100 | S5: 1 | T5: 0
A6: 2 | B6: 2 | C6: =[1]HeroPowerUpConfig!J6 -> 225 | D6: =[1]HeroPowerUpConfig!K6 -> 235 | E6: =[1]HeroPowerUpConfig!L6 -> 239 | F6: 筑基期 | G6: 前 | H6: 2 | I6: =[2]主表!P4*(1+T6) -> 5.72268311 | J6: =[2]主表!Q4 -> 1.065 | K6: =[2]主表!R4 -> 1.065 | L6: =[2]主表!S4 -> 0 | M6: =[2]主表!$G4 -> 213 | N6: 2 | O6: 1 | P6: 1 | Q6: 1 | R6: 100 | S6: 1 | T6: 0
A7: 3 | B7: 3 | C7: =[1]HeroPowerUpConfig!J7 -> 225 | D7: =[1]HeroPowerUpConfig!K7 -> 235 | E7: =[1]HeroPowerUpConfig!L7 -> 240 | F7: 筑基期 | G7: 前 | H7: 3 | I7: =[2]主表!P5*(1+T7) -> 6.177834448 | J7: =[2]主表!Q5 -> 1.075 | K7: =[2]主表!R5 -> 1.075 | L7: =[2]主表!S5 -> 0 | M7: =[2]主表!$G5 -> 215 | N7: 3 | O7: 1 | P7: 2 | Q7: 1 | R7: 100 | S7: 1 | T7: 0
A8: 4 | B8: 4 | C8: =[1]HeroPowerUpConfig!J8 -> 225 | D8: =[1]HeroPowerUpConfig!K8 -> 235 | E8: =[1]HeroPowerUpConfig!L8 -> 241 | F8: 筑基期 | G8: 前 | H8: 4 | I8: =[2]主表!P6*(1+T8) -> 6.671055184 | J8: =[2]主表!Q6 -> 1.09 | K8: =[2]主表!R6 -> 1.09 | L8: =[2]主表!S6 -> 0 | M8: =[2]主表!$G6 -> 218 | N8: 4 | O8: 1 | P8: 2 | Q8: 1 | R8: 100 | S8: 1 | T8: 0
A9: 5 | B9: 5 | C9: =[1]HeroPowerUpConfig!J9 -> 225 | D9: =[1]HeroPowerUpConfig!K9 -> 235 | E9: =[1]HeroPowerUpConfig!L9 -> 242 | F9: 筑基期 | G9: 前 | H9: 5 | I9: =[2]主表!P7*(1+T9) -> 7.175478261 | J9: =[2]主表!Q7 -> 1.105 | K9: =[2]主表!R7 -> 1.105 | L9: =[2]主表!S7 -> 0 | M9: =[2]主表!$G7 -> 221 | N9: 5 | O9: 1 | P9: 3 | Q9: 1 | R9: 100 | S9: 1 | T9: 0
A10: 6 | B10: 6 | C10: =[1]HeroPowerUpConfig!J10 -> 225 | D10: =[1]HeroPowerUpConfig!K10 -> 235 | E10: =[1]HeroPowerUpConfig!L10 -> 243 | F10: 筑基期 | G10: 前 | H10: 6 | I10: =[2]主表!P8*(1+T10) -> 7.691103679 | J10: =[2]主表!Q8 -> 1.12 | K10: =[2]主表!R8 -> 1.12 | L10: =[2]主表!S8 -> 0 | M10: =[2]主表!$G8 -> 224 | N10: 6 | O10: 1 | P10: 3 | Q10: 1 | R10: 100 | S10: 1 | T10: 0
A11: 7 | B11: 7 | C11: =[1]HeroPowerUpConfig!J11 -> 225 | D11: =[1]HeroPowerUpConfig!K11 -> 235 | E11: =[1]HeroPowerUpConfig!L11 -> 244 | F11: 筑基期 | G11: 前 | H11: 7 | I11: =[2]主表!P9*(1+T11) -> 8.217931438 | J11: =[2]主表!Q9 -> 1.135 | K11: =[2]主表!R9 -> 1.135 | L11: =[2]主表!S9 -> 0 | M11: =[2]主表!$G9 -> 227 | N11: 7 | O11: 1 | P11: 4 | Q11: 1 | R11: 100 | S11: 1 | T11: 0
A12: 8 | B12: 8 | C12: =[1]HeroPowerUpConfig!J12 -> 225 | D12: =[1]HeroPowerUpConfig!K12 -> 235 | E12: =[1]HeroPowerUpConfig!L12 -> 245 | F12: 筑基期 | G12: 前 | H12: 8 | I12: =[2]主表!P10*(1+T12) -> 8.755961538 | J12: =[2]主表!Q10 -> 1.15 | K12: =[2]主表!R10 -> 1.15 | L12: =[2]主表!S10 -> 0 | M12: =[2]主表!$G10 -> 230 | N12: 8 | O12: 1 | P12: 4 | Q12: 1 | R12: 100 | S12: 1 | T12: 0
A13: 9 | B13: 9 | C13: =[1]HeroPowerUpConfig!J13 -> 225 | D13: =[1]HeroPowerUpConfig!K13 -> 235 | E13: =[1]HeroPowerUpConfig!L13 -> 246 | F13: 筑基期 | G13: 前 | H13: 9 | I13: =[2]主表!P11*(1+T13) -> 9.30519398 | J13: =[2]主表!Q11 -> 1.165 | K13: =[2]主表!R11 -> 1.165 | L13: =[2]主表!S11 -> 0 | M13: =[2]主表!$G11 -> 233 | N13: 9 | O13: 1 | P13: 5 | Q13: 1 | R13: 100 | S13: 1 | T13: 0
A14: 10 | B14: 10 | C14: =[1]HeroPowerUpConfig!J14 -> 225 | D14: =[1]HeroPowerUpConfig!K14 -> 235 | E14: =[1]HeroPowerUpConfig!L14 -> 247 | F14: 筑基期 | G14: 前 | H14: 10 | I14: =[2]主表!P12*(1+T14) -> 9.865628763 | J14: =[2]主表!Q12 -> 1.18 | K14: =[2]主表!R12 -> 1.18 | L14: =[2]主表!S12 -> 0 | M14: =[2]主表!$G12 -> 236 | N14: 10 | O14: 1 | P14: 5 | Q14: 1 | R14: 100 | S14: 1 | T14: 0
A15: 11 | B15: 11 | C15: =[1]HeroPowerUpConfig!J15 -> 225 | D15: =[1]HeroPowerUpConfig!K15 -> 236 | E15: =[1]HeroPowerUpConfig!L15 -> 238 | F15: 筑基期 | G15: 中 | H15: 1 | I15: =[2]主表!P13*(1+T15) -> 11.44168896 | J15: =[2]主表!Q13 -> 1.31 | K15: =[2]主表!R13 -> 1.31 | L15: =[2]主表!S13 -> 0 | M15: =[2]主表!$G13 -> 262 | N15: 11 | O15: 1 | P15: 6 | Q15: 1 | R15: 100 | S15: 1 | T15: 0
A16: 12 | B16: 12 | C16: =[1]HeroPowerUpConfig!J16 -> 225 | D16: =[1]HeroPowerUpConfig!K16 -> 236 | E16: =[1]HeroPowerUpConfig!L16 -> 239 | F16: 筑基期 | G16: 中 | H16: 2 | I16: =[2]主表!P14*(1+T16) -> 12.06747074 | J16: =[2]主表!Q14 -> 1.325 | K16: =[2]主表!R14 -> 1.325 | L16: =[2]主表!S14 -> 0 | M16: =[2]主表!$G14 -> 265 | N16: 12 | O16: 1 | P16: 6 | Q16: 1 | R16: 100 | S16: 1 | T16: 0
A17: 13 | B17: 13 | C17: =[1]HeroPowerUpConfig!J17 -> 225 | D17: =[1]HeroPowerUpConfig!K17 -> 236 | E17: =[1]HeroPowerUpConfig!L17 -> 240 | F17: 筑基期 | G17: 中 | H17: 3 | I17: =[2]主表!P15*(1+T17) -> 12.75185953 | J17: =[2]主表!Q15 -> 1.345 | K17: =[2]主表!R15 -> 1.345 | L17: =[2]主表!S15 -> 0 | M17: =[2]主表!$G15 -> 269 | N17: 13 | O17: 1 | P17: 7 | Q17: 1 | R17: 100 | S17: 1 | T17: 0
A18: 14 | B18: 14 | C18: =[1]HeroPowerUpConfig!J18 -> 225 | D18: =[1]HeroPowerUpConfig!K18 -> 236 | E18: =[1]HeroPowerUpConfig!L18 -> 241 | F18: 筑基期 | G18: 中 | H18: 4 | I18: =[2]主表!P16*(1+T18) -> 13.45118478 | J18: =[2]主表!Q16 -> 1.365 | K18: =[2]主表!R16 -> 1.365 | L18: =[2]主表!S16 -> 0 | M18: =[2]主表!$G16 -> 273 | N18: 14 | O18: 1 | P18: 7 | Q18: 1 | R18: 100 | S18: 1 | T18: 0
A19: 15 | B19: 15 | C19: =[1]HeroPowerUpConfig!J19 -> 225 | D19: =[1]HeroPowerUpConfig!K19 -> 236 | E19: =[1]HeroPowerUpConfig!L19 -> 242 | F19: 筑基期 | G19: 中 | H19: 5 | I19: =[2]主表!P17*(1+T19) -> 14.16544649 | J19: =[2]主表!Q17 -> 1.385 | K19: =[2]主表!R17 -> 1.385 | L19: =[2]主表!S17 -> 0 | M19: =[2]主表!$G17 -> 277 | N19: 15 | O19: 1 | P19: 8 | Q19: 1 | R19: 100 | S19: 1 | T19: 0
A20: 16 | B20: 16 | C20: =[1]HeroPowerUpConfig!J20 -> 225 | D20: =[1]HeroPowerUpConfig!K20 -> 236 | E20: =[1]HeroPowerUpConfig!L20 -> 243 | F20: 筑基期 | G20: 中 | H20: 6 | I20: =[2]主表!P18*(1+T20) -> 15.19253754 | J20: =[2]主表!Q18 -> 1.405 | K20: =[2]主表!R18 -> 1.405 | L20: =[2]主表!S18 -> 0 | M20: =[2]主表!$G18 -> 281 | N20: 16 | O20: 1 | P20: 8 | Q20: 1 | R20: 100 | S20: 1 | T20: 0.02
A21: 17 | B21: 17 | C21: =[1]HeroPowerUpConfig!J21 -> 225 | D21: =[1]HeroPowerUpConfig!K21 -> 236 | E21: =[1]HeroPowerUpConfig!L21 -> 244 | F21: 筑基期 | G21: 中 | H21: 7 | I21: =[2]主表!P19*(1+T21) -> 16.26433043 | J21: =[2]主表!Q19 -> 1.425 | K21: =[2]主表!R19 -> 1.425 | L21: =[2]主表!S19 -> 0 | M21: =[2]主表!$G19 -> 285 | N21: 17 | O21: 1 | P21: 9 | Q21: 1 | R21: 100 | S21: 1 | T21: 0.04
A22: 18 | B22: 18 | C22: =[1]HeroPowerUpConfig!J22 -> 225 | D22: =[1]HeroPowerUpConfig!K22 -> 236 | E22: =[1]HeroPowerUpConfig!L22 -> 245 | F22: 筑基期 | G22: 中 | H22: 8 | I22: =[2]主表!P20*(1+T22) -> 17.38172135 | J22: =[2]主表!Q20 -> 1.445 | K22: =[2]主表!R20 -> 1.445 | L22: =[2]主表!S20 -> 0 | M22: =[2]主表!$G20 -> 289 | N22: 18 | O22: 1 | P22: 9 | Q22: 1 | R22: 100 | S22: 1 | T22: 0.06
A23: 19 | B23: 19 | C23: =[1]HeroPowerUpConfig!J23 -> 225 | D23: =[1]HeroPowerUpConfig!K23 -> 236 | E23: =[1]HeroPowerUpConfig!L23 -> 246 | F23: 筑基期 | G23: 中 | H23: 9 | I23: =[2]主表!P21*(1+T23) -> 18.54560649 | J23: =[2]主表!Q21 -> 1.465 | K23: =[2]主表!R21 -> 1.465 | L23: =[2]主表!S21 -> 0 | M23: =[2]主表!$G21 -> 293 | N23: 19 | O23: 1 | P23: 10 | Q23: 1 | R23: 100 | S23: 1 | T23: 0.08
A24: 20 | B24: 20 | C24: =[1]HeroPowerUpConfig!J24 -> 225 | D24: =[1]HeroPowerUpConfig!K24 -> 236 | E24: =[1]HeroPowerUpConfig!L24 -> 247 | F24: 筑基期 | G24: 中 | H24: 10 | I24: =[2]主表!P22*(1+T24) -> 19.82340351 | J24: =[2]主表!Q22 -> 1.49 | K24: =[2]主表!R22 -> 1.49 | L24: =[2]主表!S22 -> 0 | M24: =[2]主表!$G22 -> 298 | N24: 20 | O24: 1 | P24: 10 | Q24: 1 | R24: 100 | S24: 1 | T24: 0.1
A25: 21 | B25: 21 | C25: =[1]HeroPowerUpConfig!J25 -> 225 | D25: =[1]HeroPowerUpConfig!K25 -> 237 | E25: =[1]HeroPowerUpConfig!L25 -> 238 | F25: 筑基期 | G25: 后 | H25: 1 | I25: =[2]主表!P23*(1+T25) -> 24.15843746 | J25: =[2]主表!Q23 -> 1.73 | K25: =[2]主表!R23 -> 1.73 | L25: =[2]主表!S23 -> 0 | M25: =[2]主表!$G23 -> 346 | N25: 21 | O25: 1 | P25: 11 | Q25: 1 | R25: 100 | S25: 1 | T25: 0.12
A26: 22 | B26: 22 | C26: =[1]HeroPowerUpConfig!J26 -> 225 | D26: =[1]HeroPowerUpConfig!K26 -> 237 | E26: =[1]HeroPowerUpConfig!L26 -> 239 | F26: 筑基期 | G26: 后 | H26: 2 | I26: =[2]主表!P24*(1+T26) -> 25.69226674 | J26: =[2]主表!Q24 -> 1.755 | K26: =[2]主表!R24 -> 1.755 | L26: =[2]主表!S24 -> 0 | M26: =[2]主表!$G24 -> 351 | N26: 22 | O26: 1 | P26: 11 | Q26: 1 | R26: 100 | S26: 1 | T26: 0.14
A27: 23 | B27: 23 | C27: =[1]HeroPowerUpConfig!J27 -> 225 | D27: =[1]HeroPowerUpConfig!K27 -> 237 | E27: =[1]HeroPowerUpConfig!L27 -> 240 | F27: 筑基期 | G27: 后 | H27: 3 | I27: =[2]主表!P25*(1+T27) -> 27.28643559 | J27: =[2]主表!Q25 -> 1.78 | K27: =[2]主表!R25 -> 1.78 | L27: =[2]主表!S25 -> 0 | M27: =[2]主表!$G25 -> 356 | N27: 23 | O27: 1 | P27: 12 | Q27: 1 | R27: 100 | S27: 1 | T27: 0.16
A28: 24 | B28: 24 | C28: =[1]HeroPowerUpConfig!J28 -> 225 | D28: =[1]HeroPowerUpConfig!K28 -> 237 | E28: =[1]HeroPowerUpConfig!L28 -> 241 | F28: 筑基期 | G28: 后 | H28: 4 | I28: =[2]主表!P26*(1+T28) -> 28.94206423 | J28: =[2]主表!Q26 -> 1.805 | K28: =[2]主表!R26 -> 1.805 | L28: =[2]主表!S26 -> 0 | M28: =[2]主表!$G26 -> 361 | N28: 24 | O28: 1 | P28: 12 | Q28: 1 | R28: 100 | S28: 1 | T28: 0.18
A29: 25 | B29: 25 | C29: =[1]HeroPowerUpConfig!J29 -> 225 | D29: =[1]HeroPowerUpConfig!K29 -> 237 | E29: =[1]HeroPowerUpConfig!L29 -> 242 | F29: 筑基期 | G29: 后 | H29: 5 | I29: =[2]主表!P27*(1+T29) -> 30.74404415 | J29: =[2]主表!Q27 -> 1.835 | K29: =[2]主表!R27 -> 1.835 | L29: =[2]主表!S27 -> 0 | M29: =[2]主表!$G27 -> 367 | N29: 25 | O29: 1 | P29: 13 | Q29: 1 | R29: 100 | S29: 1 | T29: 0.2
A30: 26 | B30: 26 | C30: =[1]HeroPowerUpConfig!J30 -> 225 | D30: =[1]HeroPowerUpConfig!K30 -> 237 | E30: =[1]HeroPowerUpConfig!L30 -> 243 | F30: 筑基期 | G30: 后 | H30: 6 | I30: =[2]主表!P28*(1+T30) -> 32.52962709 | J30: =[2]主表!Q28 -> 1.86 | K30: =[2]主表!R28 -> 1.86 | L30: =[2]主表!S28 -> 0 | M30: =[2]主表!$G28 -> 372 | N30: 26 | O30: 1 | P30: 13 | Q30: 1 | R30: 100 | S30: 1 | T30: 0.22
A31: 27 | B31: 27 | C31: =[1]HeroPowerUpConfig!J31 -> 225 | D31: =[1]HeroPowerUpConfig!K31 -> 237 | E31: =[1]HeroPowerUpConfig!L31 -> 244 | F31: 筑基期 | G31: 后 | H31: 7 | I31: =[2]主表!P29*(1+T31) -> 34.47129913 | J31: =[2]主表!Q29 -> 1.89 | K31: =[2]主表!R29 -> 1.89 | L31: =[2]主表!S29 -> 0 | M31: =[2]主表!$G29 -> 378 | N31: 27 | O31: 1 | P31: 14 | Q31: 1 | R31: 100 | S31: 1 | T31: 0.24
A32: 28 | B32: 28 | C32: =[1]HeroPowerUpConfig!J32 -> 225 | D32: =[1]HeroPowerUpConfig!K32 -> 237 | E32: =[1]HeroPowerUpConfig!L32 -> 245 | F32: 筑基期 | G32: 后 | H32: 8 | I32: =[2]主表!P30*(1+T32) -> 36.48663331 | J32: =[2]主表!Q30 -> 1.92 | K32: =[2]主表!R30 -> 1.92 | L32: =[2]主表!S30 -> 0 | M32: =[2]主表!$G30 -> 384 | N32: 28 | O32: 1 | P32: 14 | Q32: 1 | R32: 100 | S32: 1 | T32: 0.26
A33: 29 | B33: 29 | C33: =[1]HeroPowerUpConfig!J33 -> 225 | D33: =[1]HeroPowerUpConfig!K33 -> 237 | E33: =[1]HeroPowerUpConfig!L33 -> 246 | F33: 筑基期 | G33: 后 | H33: 9 | I33: =[2]主表!P31*(1+T33) -> 38.57697391 | J33: =[2]主表!Q31 -> 1.95 | K33: =[2]主表!R31 -> 1.95 | L33: =[2]主表!S31 -> 0 | M33: =[2]主表!$G31 -> 390 | N33: 29 | O33: 1 | P33: 15 | Q33: 1 | R33: 100 | S33: 1 | T33: 0.28
A34: 30 | B34: 30 | C34: =[1]HeroPowerUpConfig!J34 -> 225 | D34: =[1]HeroPowerUpConfig!K34 -> 237 | E34: =[1]HeroPowerUpConfig!L34 -> 247 | F34: 筑基期 | G34: 后 | H34: 10 | I34: =[2]主表!P32*(1+T34) -> 40.74366522 | J34: =[2]主表!Q32 -> 1.98 | K34: =[2]主表!R32 -> 1.98 | L34: =[2]主表!S32 -> 0 | M34: =[2]主表!$G32 -> 396 | N34: 30 | O34: 1 | P34: 15 | Q34: 1 | R34: 100 | S34: 1 | T34: 0.3
A35: 31 | B35: 31 | C35: =[1]HeroPowerUpConfig!J35 -> 226 | D35: =[1]HeroPowerUpConfig!K35 -> 235 | E35: =[1]HeroPowerUpConfig!L35 -> 238 | F35: 金丹期 | G35: 前 | H35: 1 | I35: =[2]主表!P33*(1+T35) -> 54.86922826 | J35: =[2]主表!Q33 -> 2.605 | K35: =[2]主表!R33 -> 2.605 | L35: =[2]主表!S33 -> 0 | M35: =[2]主表!$G33 -> 521 | N35: 31 | O35: 1 | P35: 16 | Q35: 1 | R35: 100 | S35: 1 | T35: 0.3
A36: 32 | B36: 32 | C36: =[1]HeroPowerUpConfig!J36 -> 226 | D36: =[1]HeroPowerUpConfig!K36 -> 235 | E36: =[1]HeroPowerUpConfig!L36 -> 239 | F36: 金丹期 | G36: 前 | H36: 2 | I36: =[2]主表!P34*(1+T36) -> 57.10346739 | J36: =[2]主表!Q34 -> 2.65 | K36: =[2]主表!R34 -> 2.65 | L36: =[2]主表!S34 -> 0 | M36: =[2]主表!$G34 -> 530 | N36: 32 | O36: 1 | P36: 16 | Q36: 1 | R36: 100 | S36: 1 | T36: 0.3
A37: 33 | B37: 33 | C37: =[1]HeroPowerUpConfig!J37 -> 226 | D37: =[1]HeroPowerUpConfig!K37 -> 235 | E37: =[1]HeroPowerUpConfig!L37 -> 240 | F37: 金丹期 | G37: 前 | H37: 3 | I37: =[2]主表!P35*(1+T37) -> 59.27122609 | J37: =[2]主表!Q35 -> 2.69 | K37: =[2]主表!R35 -> 2.69 | L37: =[2]主表!S35 -> 0 | M37: =[2]主表!$G35 -> 538 | N37: 33 | O37: 1 | P37: 17 | Q37: 1 | R37: 100 | S37: 1 | T37: 0.3
A38: 34 | B38: 34 | C38: =[1]HeroPowerUpConfig!J38 -> 226 | D38: =[1]HeroPowerUpConfig!K38 -> 235 | E38: =[1]HeroPowerUpConfig!L38 -> 241 | F38: 金丹期 | G38: 前 | H38: 4 | I38: =[2]主表!P36*(1+T38) -> 61.47781957 | J38: =[2]主表!Q36 -> 2.73 | K38: =[2]主表!R36 -> 2.73 | L38: =[2]主表!S36 -> 0 | M38: =[2]主表!$G36 -> 546 | N38: 34 | O38: 1 | P38: 17 | Q38: 1 | R38: 100 | S38: 1 | T38: 0.3
A39: 35 | B39: 35 | C39: =[1]HeroPowerUpConfig!J39 -> 226 | D39: =[1]HeroPowerUpConfig!K39 -> 235 | E39: =[1]HeroPowerUpConfig!L39 -> 242 | F39: 金丹期 | G39: 前 | H39: 5 | I39: =[2]主表!P37*(1+T39) -> 63.83827174 | J39: =[2]主表!Q37 -> 2.775 | K39: =[2]主表!R37 -> 2.775 | L39: =[2]主表!S37 -> 0 | M39: =[2]主表!$G37 -> 555 | N39: 35 | O39: 1 | P39: 18 | Q39: 1 | R39: 100 | S39: 1 | T39: 0.3
A40: 36 | B40: 36 | C40: =[1]HeroPowerUpConfig!J40 -> 226 | D40: =[1]HeroPowerUpConfig!K40 -> 235 | E40: =[1]HeroPowerUpConfig!L40 -> 243 | F40: 金丹期 | G40: 前 | H40: 6 | I40: =[2]主表!P38*(1+T40) -> 66.24241304 | J40: =[2]主表!Q38 -> 2.82 | K40: =[2]主表!R38 -> 2.82 | L40: =[2]主表!S38 -> 0 | M40: =[2]主表!$G38 -> 564 | N40: 36 | O40: 1 | P40: 18 | Q40: 1 | R40: 100 | S40: 1 | T40: 0.3
A41: 37 | B41: 37 | C41: =[1]HeroPowerUpConfig!J41 -> 226 | D41: =[1]HeroPowerUpConfig!K41 -> 235 | E41: =[1]HeroPowerUpConfig!L41 -> 244 | F41: 金丹期 | G41: 前 | H41: 7 | I41: =[2]主表!P39*(1+T41) -> 68.69024348 | J41: =[2]主表!Q39 -> 2.865 | K41: =[2]主表!R39 -> 2.865 | L41: =[2]主表!S39 -> 0 | M41: =[2]主表!$G39 -> 573 | N41: 37 | O41: 1 | P41: 19 | Q41: 1 | R41: 100 | S41: 1 | T41: 0.3
A42: 38 | B42: 38 | C42: =[1]HeroPowerUpConfig!J42 -> 226 | D42: =[1]HeroPowerUpConfig!K42 -> 235 | E42: =[1]HeroPowerUpConfig!L42 -> 245 | F42: 金丹期 | G42: 前 | H42: 8 | I42: =[2]主表!P40*(1+T42) -> 71.30406848 | J42: =[2]主表!Q40 -> 2.915 | K42: =[2]主表!R40 -> 2.915 | L42: =[2]主表!S40 -> 0 | M42: =[2]主表!$G40 -> 583 | N42: 38 | O42: 1 | P42: 19 | Q42: 1 | R42: 100 | S42: 1 | T42: 0.3
A43: 39 | B43: 39 | C43: =[1]HeroPowerUpConfig!J43 -> 226 | D43: =[1]HeroPowerUpConfig!K43 -> 235 | E43: =[1]HeroPowerUpConfig!L43 -> 246 | F43: 金丹期 | G43: 前 | H43: 9 | I43: =[2]主表!P41*(1+T43) -> 73.84170435 | J43: =[2]主表!Q41 -> 2.96 | K43: =[2]主表!R41 -> 2.96 | L43: =[2]主表!S41 -> 0 | M43: =[2]主表!$G41 -> 592 | N43: 39 | O43: 1 | P43: 20 | Q43: 1 | R43: 100 | S43: 1 | T43: 0.3
A44: 40 | B44: 40 | C44: =[1]HeroPowerUpConfig!J44 -> 226 | D44: =[1]HeroPowerUpConfig!K44 -> 235 | E44: =[1]HeroPowerUpConfig!L44 -> 247 | F44: 金丹期 | G44: 前 | H44: 10 | I44: =[2]主表!P42*(1+T44) -> 76.55018913 | J44: =[2]主表!Q42 -> 3.01 | K44: =[2]主表!R42 -> 3.01 | L44: =[2]主表!S42 -> 0 | M44: =[2]主表!$G42 -> 602 | N44: 40 | O44: 1 | P44: 20 | Q44: 1 | R44: 100 | S44: 1 | T44: 0.3
A45: 41 | B45: 41 | C45: =[1]HeroPowerUpConfig!J45 -> 226 | D45: =[1]HeroPowerUpConfig!K45 -> 236 | E45: =[1]HeroPowerUpConfig!L45 -> 238 | F45: 金丹期 | G45: 中 | H45: 1 | I45: =[2]主表!P43*(1+T45) -> 87.08243478 | J45: =[2]主表!Q43 -> 3.36 | K45: =[2]主表!R43 -> 3.36 | L45: =[2]主表!S43 -> 0 | M45: =[2]主表!$G43 -> 672 | N45: 41 | O45: 1 | P45: 21 | Q45: 1 | R45: 100 | S45: 1 | T45: 0.3
A46: 42 | B46: 42 | C46: =[1]HeroPowerUpConfig!J46 -> 226 | D46: =[1]HeroPowerUpConfig!K46 -> 236 | E46: =[1]HeroPowerUpConfig!L46 -> 239 | F46: 金丹期 | G46: 中 | H46: 2 | I46: =[2]主表!P44*(1+T46) -> 90.16565109 | J46: =[2]主表!Q44 -> 3.415 | K46: =[2]主表!R44 -> 3.415 | L46: =[2]主表!S44 -> 0 | M46: =[2]主表!$G44 -> 683 | N46: 42 | O46: 1 | P46: 21 | Q46: 1 | R46: 100 | S46: 1 | T46: 0.3
A47: 43 | B47: 43 | C47: =[1]HeroPowerUpConfig!J47 -> 226 | D47: =[1]HeroPowerUpConfig!K47 -> 236 | E47: =[1]HeroPowerUpConfig!L47 -> 240 | F47: 金丹期 | G47: 中 | H47: 3 | I47: =[2]主表!P45*(1+T47) -> 93.43670652 | J47: =[2]主表!Q45 -> 3.475 | K47: =[2]主表!R45 -> 3.475 | L47: =[2]主表!S45 -> 0 | M47: =[2]主表!$G45 -> 695 | N47: 43 | O47: 1 | P47: 22 | Q47: 1 | R47: 100 | S47: 1 | T47: 0.3
A48: 44 | B48: 44 | C48: =[1]HeroPowerUpConfig!J48 -> 226 | D48: =[1]HeroPowerUpConfig!K48 -> 236 | E48: =[1]HeroPowerUpConfig!L48 -> 241 | F48: 金丹期 | G48: 中 | H48: 4 | I48: =[2]主表!P46*(1+T48) -> 96.76601413 | J48: =[2]主表!Q46 -> 3.535 | K48: =[2]主表!R46 -> 3.535 | L48: =[2]主表!S46 -> 0 | M48: =[2]主表!$G46 -> 707 | N48: 44 | O48: 1 | P48: 22 | Q48: 1 | R48: 100 | S48: 1 | T48: 0.3
A49: 45 | B49: 45 | C49: =[1]HeroPowerUpConfig!J49 -> 226 | D49: =[1]HeroPowerUpConfig!K49 -> 236 | E49: =[1]HeroPowerUpConfig!L49 -> 242 | F49: 金丹期 | G49: 中 | H49: 5 | I49: =[2]主表!P47*(1+T49) -> 100.1535739 | J49: =[2]主表!Q47 -> 3.595 | K49: =[2]主表!R47 -> 3.595 | L49: =[2]主表!S47 -> 0 | M49: =[2]主表!$G47 -> 719 | N49: 45 | O49: 1 | P49: 23 | Q49: 1 | R49: 100 | S49: 1 | T49: 0.3
A50: 46 | B50: 46 | C50: =[1]HeroPowerUpConfig!J50 -> 226 | D50: =[1]HeroPowerUpConfig!K50 -> 236 | E50: =[1]HeroPowerUpConfig!L50 -> 243 | F50: 金丹期 | G50: 中 | H50: 6 | I50: =[2]主表!P48*(1+T50) -> 103.5993859 | J50: =[2]主表!Q48 -> 3.655 | K50: =[2]主表!R48 -> 3.655 | L50: =[2]主表!S48 -> 0 | M50: =[2]主表!$G48 -> 731 | N50: 46 | O50: 1 | P50: 23 | Q50: 1 | R50: 100 | S50: 1 | T50: 0.3
A51: 47 | B51: 47 | C51: =[1]HeroPowerUpConfig!J51 -> 226 | D51: =[1]HeroPowerUpConfig!K51 -> 236 | E51: =[1]HeroPowerUpConfig!L51 -> 244 | F51: 金丹期 | G51: 中 | H51: 7 | I51: =[2]主表!P49*(1+T51) -> 107.10345 | J51: =[2]主表!Q49 -> 3.715 | K51: =[2]主表!R49 -> 3.715 | L51: =[2]主表!S49 -> 0 | M51: =[2]主表!$G49 -> 743 | N51: 47 | O51: 1 | P51: 24 | Q51: 1 | R51: 100 | S51: 1 | T51: 0.3
A52: 48 | B52: 48 | C52: =[1]HeroPowerUpConfig!J52 -> 226 | D52: =[1]HeroPowerUpConfig!K52 -> 236 | E52: =[1]HeroPowerUpConfig!L52 -> 245 | F52: 金丹期 | G52: 中 | H52: 8 | I52: =[2]主表!P50*(1+T52) -> 110.8123435 | J52: =[2]主表!Q50 -> 3.78 | K52: =[2]主表!R50 -> 3.78 | L52: =[2]主表!S50 -> 0 | M52: =[2]主表!$G50 -> 756 | N52: 48 | O52: 1 | P52: 24 | Q52: 1 | R52: 100 | S52: 1 | T52: 0.3
A53: 49 | B53: 49 | C53: =[1]HeroPowerUpConfig!J53 -> 226 | D53: =[1]HeroPowerUpConfig!K53 -> 236 | E53: =[1]HeroPowerUpConfig!L53 -> 246 | F53: 金丹期 | G53: 中 | H53: 9 | I53: =[2]主表!P51*(1+T53) -> 114.5843435 | J53: =[2]主表!Q51 -> 3.845 | K53: =[2]主表!R51 -> 3.845 | L53: =[2]主表!S51 -> 0 | M53: =[2]主表!$G51 -> 769 | N53: 49 | O53: 1 | P53: 25 | Q53: 1 | R53: 100 | S53: 1 | T53: 0.3
A54: 50 | B54: 50 | C54: =[1]HeroPowerUpConfig!J54 -> 226 | D54: =[1]HeroPowerUpConfig!K54 -> 236 | E54: =[1]HeroPowerUpConfig!L54 -> 247 | F54: 金丹期 | G54: 中 | H54: 10 | I54: =[2]主表!P52*(1+T54) -> 118.5708815 | J54: =[2]主表!Q52 -> 3.915 | K54: =[2]主表!R52 -> 3.915 | L54: =[2]主表!S52 -> 0 | M54: =[2]主表!$G52 -> 783 | N54: 50 | O54: 1 | P54: 25 | Q54: 1 | R54: 100 | S54: 1 | T54: 0.3
A55: 51 | B55: 51 | C55: =[1]HeroPowerUpConfig!J55 -> 226 | D55: =[1]HeroPowerUpConfig!K55 -> 237 | E55: =[1]HeroPowerUpConfig!L55 -> 238 | F55: 金丹期 | G55: 后 | H55: 1 | I55: =[2]主表!P53*(1+T55) -> 140.6268478 | J55: =[2]主表!Q53 -> 4.57 | K55: =[2]主表!R53 -> 4.57 | L55: =[2]主表!S53 -> 0 | M55: =[2]主表!$G53 -> 914 | N55: 51 | O55: 2 | P55: 26 | Q55: 2 | R55: 100 | S55: 1 | T55: 0.3
A56: 52 | B56: 52 | C56: =[1]HeroPowerUpConfig!J56 -> 226 | D56: =[1]HeroPowerUpConfig!K56 -> 237 | E56: =[1]HeroPowerUpConfig!L56 -> 239 | F56: 金丹期 | G56: 后 | H56: 2 | I56: =[2]主表!P54*(1+T56) -> 145.3458587 | J56: =[2]主表!Q54 -> 4.65 | K56: =[2]主表!R54 -> 4.65 | L56: =[2]主表!S54 -> 0 | M56: =[2]主表!$G54 -> 930 | N56: 52 | O56: 2 | P56: 26 | Q56: 2 | R56: 100 | S56: 1 | T56: 0.3
A57: 53 | B57: 53 | C57: =[1]HeroPowerUpConfig!J57 -> 226 | D57: =[1]HeroPowerUpConfig!K57 -> 237 | E57: =[1]HeroPowerUpConfig!L57 -> 240 | F57: 金丹期 | G57: 后 | H57: 3 | I57: =[2]主表!P55*(1+T57) -> 150.1425391 | J57: =[2]主表!Q55 -> 4.73 | K57: =[2]主表!R55 -> 4.73 | L57: =[2]主表!S55 -> 0 | M57: =[2]主表!$G55 -> 946 | N57: 53 | O57: 2 | P57: 27 | Q57: 2 | R57: 100 | S57: 1 | T57: 0.3
A58: 54 | B58: 54 | C58: =[1]HeroPowerUpConfig!J58 -> 226 | D58: =[1]HeroPowerUpConfig!K58 -> 237 | E58: =[1]HeroPowerUpConfig!L58 -> 241 | F58: 金丹期 | G58: 后 | H58: 4 | I58: =[2]主表!P56*(1+T58) -> 155.0168891 | J58: =[2]主表!Q56 -> 4.81 | K58: =[2]主表!R56 -> 4.81 | L58: =[2]主表!S56 -> 0 | M58: =[2]主表!$G56 -> 962 | N58: 54 | O58: 2 | P58: 27 | Q58: 2 | R58: 100 | S58: 1 | T58: 0.3
A59: 55 | B59: 55 | C59: =[1]HeroPowerUpConfig!J59 -> 226 | D59: =[1]HeroPowerUpConfig!K59 -> 237 | E59: =[1]HeroPowerUpConfig!L59 -> 242 | F59: 金丹期 | G59: 后 | H59: 5 | I59: =[2]主表!P57*(1+T59) -> 160.1324761 | J59: =[2]主表!Q57 -> 4.895 | K59: =[2]主表!R57 -> 4.895 | L59: =[2]主表!S57 -> 0 | M59: =[2]主表!$G57 -> 979 | N59: 55 | O59: 2 | P59: 28 | Q59: 2 | R59: 100 | S59: 1 | T59: 0.3
A60: 56 | B60: 56 | C60: =[1]HeroPowerUpConfig!J60 -> 226 | D60: =[1]HeroPowerUpConfig!K60 -> 237 | E60: =[1]HeroPowerUpConfig!L60 -> 243 | F60: 金丹期 | G60: 后 | H60: 6 | I60: =[2]主表!P58*(1+T60) -> 165.330587 | J60: =[2]主表!Q58 -> 4.98 | K60: =[2]主表!R58 -> 4.98 | L60: =[2]主表!S58 -> 0 | M60: =[2]主表!$G58 -> 996 | N60: 56 | O60: 2 | P60: 28 | Q60: 2 | R60: 100 | S60: 1 | T60: 0.3
A61: 57 | B61: 57 | C61: =[1]HeroPowerUpConfig!J61 -> 226 | D61: =[1]HeroPowerUpConfig!K61 -> 237 | E61: =[1]HeroPowerUpConfig!L61 -> 244 | F61: 金丹期 | G61: 后 | H61: 7 | I61: =[2]主表!P59*(1+T61) -> 170.6112217 | J61: =[2]主表!Q59 -> 5.065 | K61: =[2]主表!R59 -> 5.065 | L61: =[2]主表!S59 -> 0 | M61: =[2]主表!$G59 -> 1013 | N61: 57 | O61: 2 | P61: 29 | Q61: 2 | R61: 100 | S61: 1 | T61: 0.3
A62: 58 | B62: 58 | C62: =[1]HeroPowerUpConfig!J62 -> 226 | D62: =[1]HeroPowerUpConfig!K62 -> 237 | E62: =[1]HeroPowerUpConfig!L62 -> 245 | F62: 金丹期 | G62: 后 | H62: 8 | I62: =[2]主表!P60*(1+T62) -> 176.1452293 | J62: =[2]主表!Q60 -> 5.155 | K62: =[2]主表!R60 -> 5.155 | L62: =[2]主表!S60 -> 0 | M62: =[2]主表!$G60 -> 1031 | N62: 58 | O62: 2 | P62: 29 | Q62: 2 | R62: 100 | S62: 1 | T62: 0.3
A63: 59 | B63: 59 | C63: =[1]HeroPowerUpConfig!J63 -> 226 | D63: =[1]HeroPowerUpConfig!K63 -> 237 | E63: =[1]HeroPowerUpConfig!L63 -> 246 | F63: 金丹期 | G63: 后 | H63: 9 | I63: =[2]主表!P61*(1+T63) -> 181.7666152 | J63: =[2]主表!Q61 -> 5.245 | K63: =[2]主表!R61 -> 5.245 | L63: =[2]主表!S61 -> 0 | M63: =[2]主表!$G61 -> 1049 | N63: 59 | O63: 2 | P63: 30 | Q63: 2 | R63: 100 | S63: 1 | T63: 0.3
A64: 60 | B64: 60 | C64: =[1]HeroPowerUpConfig!J64 -> 226 | D64: =[1]HeroPowerUpConfig!K64 -> 237 | E64: =[1]HeroPowerUpConfig!L64 -> 247 | F64: 金丹期 | G64: 后 | H64: 10 | I64: =[2]主表!P62*(1+T64) -> 187.6510826 | J64: =[2]主表!Q62 -> 5.34 | K64: =[2]主表!R62 -> 5.34 | L64: =[2]主表!S62 -> 0 | M64: =[2]主表!$G62 -> 1068 | N64: 60 | O64: 2 | P64: 30 | Q64: 2 | R64: 100 | S64: 1 | T64: 0.3
A65: 61 | B65: 61 | C65: =[1]HeroPowerUpConfig!J65 -> 227 | D65: =[1]HeroPowerUpConfig!K65 -> 235 | E65: =[1]HeroPowerUpConfig!L65 -> 238 | F65: 元婴期 | G65: 前 | H65: 1 | I65: =[2]主表!P63*(1+T65) -> 252.5889565 | J65: =[2]主表!Q63 -> 7.09 | K65: =[2]主表!R63 -> 7.09 | L65: =[2]主表!S63 -> 0 | M65: =[2]主表!$G63 -> 1418 | N65: 61 | O65: 2 | P65: 31 | Q65: 2 | R65: 100 | S65: 1 | T65: 0.3
A66: 62 | B66: 62 | C66: =[1]HeroPowerUpConfig!J66 -> 227 | D66: =[1]HeroPowerUpConfig!K66 -> 235 | E66: =[1]HeroPowerUpConfig!L66 -> 239 | F66: 元婴期 | G66: 前 | H66: 2 | I66: =[2]主表!P64*(1+T66) -> 260.725187 | J66: =[2]主表!Q64 -> 7.22 | K66: =[2]主表!R64 -> 7.22 | L66: =[2]主表!S64 -> 0 | M66: =[2]主表!$G64 -> 1444 | N66: 62 | O66: 2 | P66: 31 | Q66: 2 | R66: 100 | S66: 1 | T66: 0.3
A67: 63 | B67: 63 | C67: =[1]HeroPowerUpConfig!J67 -> 227 | D67: =[1]HeroPowerUpConfig!K67 -> 235 | E67: =[1]HeroPowerUpConfig!L67 -> 240 | F67: 元婴期 | G67: 前 | H67: 3 | I67: =[2]主表!P65*(1+T67) -> 269.1706152 | J67: =[2]主表!Q65 -> 7.355 | K67: =[2]主表!R65 -> 7.355 | L67: =[2]主表!S65 -> 0 | M67: =[2]主表!$G65 -> 1471 | N67: 63 | O67: 2 | P67: 32 | Q67: 2 | R67: 100 | S67: 1 | T67: 0.3
A68: 64 | B68: 64 | C68: =[1]HeroPowerUpConfig!J68 -> 227 | D68: =[1]HeroPowerUpConfig!K68 -> 235 | E68: =[1]HeroPowerUpConfig!L68 -> 241 | F68: 元婴期 | G68: 前 | H68: 4 | I68: =[2]主表!P66*(1+T68) -> 277.7471109 | J68: =[2]主表!Q66 -> 7.49 | K68: =[2]主表!R66 -> 7.49 | L68: =[2]主表!S66 -> 0 | M68: =[2]主表!$G66 -> 1498 | N68: 64 | O68: 2 | P68: 32 | Q68: 2 | R68: 100 | S68: 1 | T68: 0.3
A69: 65 | B69: 65 | C69: =[1]HeroPowerUpConfig!J69 -> 227 | D69: =[1]HeroPowerUpConfig!K69 -> 235 | E69: =[1]HeroPowerUpConfig!L69 -> 242 | F69: 元婴期 | G69: 前 | H69: 5 | I69: =[2]主表!P67*(1+T69) -> 286.642513 | J69: =[2]主表!Q67 -> 7.63 | K69: =[2]主表!R67 -> 7.63 | L69: =[2]主表!S67 -> 0 | M69: =[2]主表!$G67 -> 1526 | N69: 65 | O69: 2 | P69: 33 | Q69: 2 | R69: 100 | S69: 1 | T69: 0.3
A70: 66 | B70: 66 | C70: =[1]HeroPowerUpConfig!J70 -> 227 | D70: =[1]HeroPowerUpConfig!K70 -> 235 | E70: =[1]HeroPowerUpConfig!L70 -> 243 | F70: 元婴期 | G70: 前 | H70: 6 | I70: =[2]主表!P68*(1+T70) -> 296.2446359 | J70: =[2]主表!Q68 -> 7.785 | K70: =[2]主表!R68 -> 7.785 | L70: =[2]主表!S68 -> 0 | M70: =[2]主表!$G68 -> 1557 | N70: 66 | O70: 2 | P70: 33 | Q70: 2 | R70: 100 | S70: 1 | T70: 0.3
A71: 67 | B71: 67 | C71: =[1]HeroPowerUpConfig!J71 -> 227 | D71: =[1]HeroPowerUpConfig!K71 -> 235 | E71: =[1]HeroPowerUpConfig!L71 -> 244 | F71: 元婴期 | G71: 前 | H71: 7 | I71: =[2]主表!P69*(1+T71) -> 306.189937 | J71: =[2]主表!Q69 -> 7.945 | K71: =[2]主表!R69 -> 7.945 | L71: =[2]主表!S69 -> 0 | M71: =[2]主表!$G69 -> 1589 | N71: 67 | O71: 2 | P71: 34 | Q71: 2 | R71: 100 | S71: 1 | T71: 0.3
A72: 68 | B72: 68 | C72: =[1]HeroPowerUpConfig!J72 -> 227 | D72: =[1]HeroPowerUpConfig!K72 -> 235 | E72: =[1]HeroPowerUpConfig!L72 -> 245 | F72: 元婴期 | G72: 前 | H72: 8 | I72: =[2]主表!P70*(1+T72) -> 316.4856978 | J72: =[2]主表!Q70 -> 8.11 | K72: =[2]主表!R70 -> 8.11 | L72: =[2]主表!S70 -> 0 | M72: =[2]主表!$G70 -> 1622 | N72: 68 | O72: 2 | P72: 34 | Q72: 2 | R72: 100 | S72: 1 | T72: 0.3
A73: 69 | B73: 69 | C73: =[1]HeroPowerUpConfig!J73 -> 227 | D73: =[1]HeroPowerUpConfig!K73 -> 235 | E73: =[1]HeroPowerUpConfig!L73 -> 246 | F73: 元婴期 | G73: 前 | H73: 9 | I73: =[2]主表!P71*(1+T73) -> 327.1392 | J73: =[2]主表!Q71 -> 8.28 | K73: =[2]主表!R71 -> 8.28 | L73: =[2]主表!S71 -> 0 | M73: =[2]主表!$G71 -> 1656 | N73: 69 | O73: 2 | P73: 35 | Q73: 2 | R73: 100 | S73: 1 | T73: 0.3
A74: 70 | B74: 70 | C74: =[1]HeroPowerUpConfig!J74 -> 227 | D74: =[1]HeroPowerUpConfig!K74 -> 235 | E74: =[1]HeroPowerUpConfig!L74 -> 247 | F74: 元婴期 | G74: 前 | H74: 10 | I74: =[2]主表!P72*(1+T74) -> 338.157725 | J74: =[2]主表!Q72 -> 8.455 | K74: =[2]主表!R72 -> 8.455 | L74: =[2]主表!S72 -> 0 | M74: =[2]主表!$G72 -> 1691 | N74: 70 | O74: 2 | P74: 35 | Q74: 2 | R74: 100 | S74: 1 | T74: 0.3
A75: 71 | B75: 71 | C75: =[1]HeroPowerUpConfig!J75 -> 227 | D75: =[1]HeroPowerUpConfig!K75 -> 236 | E75: =[1]HeroPowerUpConfig!L75 -> 238 | F75: 元婴期 | G75: 中 | H75: 1 | I75: =[2]主表!P73*(1+T75) -> 385.5761413 | J75: =[2]主表!Q73 -> 9.525 | K75: =[2]主表!R73 -> 9.525 | L75: =[2]主表!S73 -> 0 | M75: =[2]主表!$G73 -> 1905 | N75: 71 | O75: 2 | P75: 36 | Q75: 2 | R75: 100 | S75: 1 | T75: 0.3
A76: 72 | B76: 72 | C76: =[1]HeroPowerUpConfig!J76 -> 227 | D76: =[1]HeroPowerUpConfig!K76 -> 236 | E76: =[1]HeroPowerUpConfig!L76 -> 239 | F76: 元婴期 | G76: 中 | H76: 2 | I76: =[2]主表!P74*(1+T76) -> 398.3930815 | J76: =[2]主表!Q74 -> 9.725 | K76: =[2]主表!R74 -> 9.725 | L76: =[2]主表!S74 -> 0 | M76: =[2]主表!$G74 -> 1945 | N76: 72 | O76: 2 | P76: 36 | Q76: 2 | R76: 100 | S76: 1 | T76: 0.3
A77: 73 | B77: 73 | C77: =[1]HeroPowerUpConfig!J77 -> 227 | D77: =[1]HeroPowerUpConfig!K77 -> 236 | E77: =[1]HeroPowerUpConfig!L77 -> 240 | F77: 元婴期 | G77: 中 | H77: 3 | I77: =[2]主表!P75*(1+T77) -> 411.6114522 | J77: =[2]主表!Q75 -> 9.93 | K77: =[2]主表!R75 -> 9.93 | L77: =[2]主表!S75 -> 0 | M77: =[2]主表!$G75 -> 1986 | N77: 73 | O77: 2 | P77: 37 | Q77: 2 | R77: 100 | S77: 1 | T77: 0.3
A78: 74 | B78: 74 | C78: =[1]HeroPowerUpConfig!J78 -> 227 | D78: =[1]HeroPowerUpConfig!K78 -> 236 | E78: =[1]HeroPowerUpConfig!L78 -> 241 | F78: 元婴期 | G78: 中 | H78: 4 | I78: =[2]主表!P76*(1+T78) -> 425.2385348 | J78: =[2]主表!Q76 -> 10.14 | K78: =[2]主表!R76 -> 10.14 | L78: =[2]主表!S76 -> 0 | M78: =[2]主表!$G76 -> 2028 | N78: 74 | O78: 2 | P78: 37 | Q78: 2 | R78: 100 | S78: 1 | T78: 0.3
A79: 75 | B79: 75 | C79: =[1]HeroPowerUpConfig!J79 -> 227 | D79: =[1]HeroPowerUpConfig!K79 -> 236 | E79: =[1]HeroPowerUpConfig!L79 -> 242 | F79: 元婴期 | G79: 中 | H79: 5 | I79: =[2]主表!P77*(1+T79) -> 439.2816109 | J79: =[2]主表!Q77 -> 10.355 | K79: =[2]主表!R77 -> 10.355 | L79: =[2]主表!S77 -> 0 | M79: =[2]主表!$G77 -> 2071 | N79: 75 | O79: 2 | P79: 38 | Q79: 2 | R79: 100 | S79: 1 | T79: 0.3
A80: 76 | B80: 76 | C80: =[1]HeroPowerUpConfig!J80 -> 227 | D80: =[1]HeroPowerUpConfig!K80 -> 236 | E80: =[1]HeroPowerUpConfig!L80 -> 243 | F80: 元婴期 | G80: 中 | H80: 6 | I80: =[2]主表!P78*(1+T80) -> 453.747962 | J80: =[2]主表!Q78 -> 10.575 | K80: =[2]主表!R78 -> 10.575 | L80: =[2]主表!S78 -> 0 | M80: =[2]主表!$G78 -> 2115 | N80: 76 | O80: 2 | P80: 38 | Q80: 2 | R80: 100 | S80: 1 | T80: 0.3
A81: 77 | B81: 77 | C81: =[1]HeroPowerUpConfig!J81 -> 227 | D81: =[1]HeroPowerUpConfig!K81 -> 236 | E81: =[1]HeroPowerUpConfig!L81 -> 244 | F81: 元婴期 | G81: 中 | H81: 7 | I81: =[2]主表!P79*(1+T81) -> 468.8618348 | J81: =[2]主表!Q79 -> 10.805 | K81: =[2]主表!R79 -> 10.805 | L81: =[2]主表!S79 -> 0 | M81: =[2]主表!$G79 -> 2161 | N81: 77 | O81: 2 | P81: 39 | Q81: 2 | R81: 100 | S81: 1 | T81: 0.3
A82: 78 | B82: 78 | C82: =[1]HeroPowerUpConfig!J82 -> 227 | D82: =[1]HeroPowerUpConfig!K82 -> 236 | E82: =[1]HeroPowerUpConfig!L82 -> 245 | F82: 元婴期 | G82: 中 | H82: 8 | I82: =[2]主表!P80*(1+T82) -> 484.1990076 | J82: =[2]主表!Q80 -> 11.035 | K82: =[2]主表!R80 -> 11.035 | L82: =[2]主表!S80 -> 0 | M82: =[2]主表!$G80 -> 2207 | N82: 78 | O82: 2 | P82: 39 | Q82: 2 | R82: 100 | S82: 1 | T82: 0.3
A83: 79 | B83: 79 | C83: =[1]HeroPowerUpConfig!J83 -> 227 | D83: =[1]HeroPowerUpConfig!K83 -> 236 | E83: =[1]HeroPowerUpConfig!L83 -> 246 | F83: 元婴期 | G83: 中 | H83: 9 | I83: =[2]主表!P81*(1+T83) -> 500.2031196 | J83: =[2]主表!Q81 -> 11.275 | K83: =[2]主表!R81 -> 11.275 | L83: =[2]主表!S81 -> 0 | M83: =[2]主表!$G81 -> 2255 | N83: 79 | O83: 2 | P83: 40 | Q83: 2 | R83: 100 | S83: 1 | T83: 0.3
A84: 80 | B84: 80 | C84: =[1]HeroPowerUpConfig!J84 -> 227 | D84: =[1]HeroPowerUpConfig!K84 -> 236 | E84: =[1]HeroPowerUpConfig!L84 -> 247 | F84: 元婴期 | G84: 中 | H84: 10 | I84: =[2]主表!P82*(1+T84) -> 516.664487 | J84: =[2]主表!Q82 -> 11.52 | K84: =[2]主表!R82 -> 11.52 | L84: =[2]主表!S82 -> 0 | M84: =[2]主表!$G82 -> 2304 | N84: 80 | O84: 2 | P84: 40 | Q84: 2 | R84: 100 | S84: 1 | T84: 0.3
A85: 81 | B85: 81 | C85: =[1]HeroPowerUpConfig!J85 -> 227 | D85: =[1]HeroPowerUpConfig!K85 -> 237 | E85: =[1]HeroPowerUpConfig!L85 -> 238 | F85: 元婴期 | G85: 后 | H85: 1 | I85: =[2]主表!P83*(1+T85) -> 614.5129783 | J85: =[2]主表!Q83 -> 13.555 | K85: =[2]主表!R83 -> 13.555 | L85: =[2]主表!S83 -> 0 | M85: =[2]主表!$G83 -> 2711 | N85: 81 | O85: 2 | P85: 41 | Q85: 2 | R85: 100 | S85: 1 | T85: 0.3
A86: 82 | B86: 82 | C86: =[1]HeroPowerUpConfig!J86 -> 227 | D86: =[1]HeroPowerUpConfig!K86 -> 237 | E86: =[1]HeroPowerUpConfig!L86 -> 239 | F86: 元婴期 | G86: 后 | H86: 2 | I86: =[2]主表!P84*(1+T86) -> 634.1518087 | J86: =[2]主表!Q84 -> 13.84 | K86: =[2]主表!R84 -> 13.84 | L86: =[2]主表!S84 -> 0 | M86: =[2]主表!$G84 -> 2768 | N86: 82 | O86: 2 | P86: 41 | Q86: 2 | R86: 100 | S86: 1 | T86: 0.3
A87: 83 | B87: 83 | C87: =[1]HeroPowerUpConfig!J87 -> 227 | D87: =[1]HeroPowerUpConfig!K87 -> 237 | E87: =[1]HeroPowerUpConfig!L87 -> 240 | F87: 元婴期 | G87: 后 | H87: 3 | I87: =[2]主表!P85*(1+T87) -> 654.5303935 | J87: =[2]主表!Q85 -> 14.135 | K87: =[2]主表!R85 -> 14.135 | L87: =[2]主表!S85 -> 0 | M87: =[2]主表!$G85 -> 2827 | N87: 83 | O87: 2 | P87: 42 | Q87: 2 | R87: 100 | S87: 1 | T87: 0.3
A88: 84 | B88: 84 | C88: =[1]HeroPowerUpConfig!J88 -> 227 | D88: =[1]HeroPowerUpConfig!K88 -> 237 | E88: =[1]HeroPowerUpConfig!L88 -> 241 | F88: 元婴期 | G88: 后 | H88: 4 | I88: =[2]主表!P86*(1+T88) -> 675.4293402 | J88: =[2]主表!Q86 -> 14.435 | K88: =[2]主表!R86 -> 14.435 | L88: =[2]主表!S86 -> 0 | M88: =[2]主表!$G86 -> 2887 | N88: 84 | O88: 2 | P88: 42 | Q88: 2 | R88: 100 | S88: 1 | T88: 0.3
A89: 85 | B89: 85 | C89: =[1]HeroPowerUpConfig!J89 -> 227 | D89: =[1]HeroPowerUpConfig!K89 -> 237 | E89: =[1]HeroPowerUpConfig!L89 -> 242 | F89: 元婴期 | G89: 后 | H89: 5 | I89: =[2]主表!P87*(1+T89) -> 697.092313 | J89: =[2]主表!Q87 -> 14.745 | K89: =[2]主表!R87 -> 14.745 | L89: =[2]主表!S87 -> 0 | M89: =[2]主表!$G87 -> 2949 | N89: 85 | O89: 2 | P89: 43 | Q89: 2 | R89: 100 | S89: 1 | T89: 0.3
A90: 86 | B90: 86 | C90: =[1]HeroPowerUpConfig!J90 -> 227 | D90: =[1]HeroPowerUpConfig!K90 -> 237 | E90: =[1]HeroPowerUpConfig!L90 -> 243 | F90: 元婴期 | G90: 后 | H90: 6 | I90: =[2]主表!P88*(1+T90) -> 719.2950652 | J90: =[2]主表!Q88 -> 15.06 | K90: =[2]主表!R88 -> 15.06 | L90: =[2]主表!S88 -> 0 | M90: =[2]主表!$G88 -> 3012 | N90: 86 | O90: 2 | P90: 43 | Q90: 2 | R90: 100 | S90: 1 | T90: 0.3
A91: 87 | B91: 87 | C91: =[1]HeroPowerUpConfig!J91 -> 227 | D91: =[1]HeroPowerUpConfig!K91 -> 237 | E91: =[1]HeroPowerUpConfig!L91 -> 244 | F91: 元婴期 | G91: 后 | H91: 7 | I91: =[2]主表!P89*(1+T91) -> 742.2861152 | J91: =[2]主表!Q89 -> 15.385 | K91: =[2]主表!R89 -> 15.385 | L91: =[2]主表!S89 -> 0 | M91: =[2]主表!$G89 -> 3077 | N91: 87 | O91: 2 | P91: 44 | Q91: 2 | R91: 100 | S91: 1 | T91: 0.3
A92: 88 | B92: 88 | C92: =[1]HeroPowerUpConfig!J92 -> 227 | D92: =[1]HeroPowerUpConfig!K92 -> 237 | E92: =[1]HeroPowerUpConfig!L92 -> 245 | F92: 元婴期 | G92: 后 | H92: 8 | I92: =[2]主表!P90*(1+T92) -> 765.836362 | J92: =[2]主表!Q90 -> 15.715 | K92: =[2]主表!R90 -> 15.715 | L92: =[2]主表!S90 -> 0 | M92: =[2]主表!$G90 -> 3143 | N92: 88 | O92: 2 | P92: 44 | Q92: 2 | R92: 100 | S92: 1 | T92: 0.3
A93: 89 | B93: 89 | C93: =[1]HeroPowerUpConfig!J93 -> 227 | D93: =[1]HeroPowerUpConfig!K93 -> 237 | E93: =[1]HeroPowerUpConfig!L93 -> 246 | F93: 元婴期 | G93: 后 | H93: 9 | I93: =[2]主表!P91*(1+T93) -> 790.1991783 | J93: =[2]主表!Q91 -> 16.055 | K93: =[2]主表!R91 -> 16.055 | L93: =[2]主表!S91 -> 0 | M93: =[2]主表!$G91 -> 3211 | N93: 89 | O93: 2 | P93: 45 | Q93: 2 | R93: 100 | S93: 1 | T93: 0.3
A94: 90 | B94: 90 | C94: =[1]HeroPowerUpConfig!J94 -> 227 | D94: =[1]HeroPowerUpConfig!K94 -> 237 | E94: =[1]HeroPowerUpConfig!L94 -> 247 | F94: 元婴期 | G94: 后 | H94: 10 | I94: =[2]主表!P92*(1+T94) -> 815.3891272 | J94: =[2]主表!Q92 -> 16.405 | K94: =[2]主表!R92 -> 16.405 | L94: =[2]主表!S92 -> 0 | M94: =[2]主表!$G92 -> 3281 | N94: 90 | O94: 2 | P94: 45 | Q94: 2 | R94: 100 | S94: 1 | T94: 0.3
A95: 91 | B95: 91 | C95: =[1]HeroPowerUpConfig!J95 -> 228 | D95: =[1]HeroPowerUpConfig!K95 -> 235 | E95: =[1]HeroPowerUpConfig!L95 -> 238 | F95: 化神期 | G95: 前 | H95: 1 | I95: =[2]主表!P93*(1+T95) -> 1102.153304 | J95: =[2]主表!Q93 -> 21.96 | K95: =[2]主表!R93 -> 21.96 | L95: =[2]主表!S93 -> 0 | M95: =[2]主表!$G93 -> 4392 | N95: 91 | O95: 2 | P95: 46 | Q95: 2 | R95: 100 | S95: 1 | T95: 0.3
A96: 92 | B96: 92 | C96: =[1]HeroPowerUpConfig!J96 -> 228 | D96: =[1]HeroPowerUpConfig!K96 -> 235 | E96: =[1]HeroPowerUpConfig!L96 -> 239 | F96: 化神期 | G96: 前 | H96: 2 | I96: =[2]主表!P94*(1+T96) -> 1136.883871 | J96: =[2]主表!Q94 -> 22.435 | K96: =[2]主表!R94 -> 22.435 | L96: =[2]主表!S94 -> 0 | M96: =[2]主表!$G94 -> 4487 | N96: 92 | O96: 2 | P96: 46 | Q96: 2 | R96: 100 | S96: 1 | T96: 0.3
A97: 93 | B97: 93 | C97: =[1]HeroPowerUpConfig!J97 -> 228 | D97: =[1]HeroPowerUpConfig!K97 -> 235 | E97: =[1]HeroPowerUpConfig!L97 -> 240 | F97: 化神期 | G97: 前 | H97: 3 | I97: =[2]主表!P95*(1+T97) -> 1172.5872 | J97: =[2]主表!Q95 -> 22.92 | K97: =[2]主表!R95 -> 22.92 | L97: =[2]主表!S95 -> 0 | M97: =[2]主表!$G95 -> 4584 | N97: 93 | O97: 2 | P97: 47 | Q97: 2 | R97: 100 | S97: 1 | T97: 0.3
A98: 94 | B98: 94 | C98: =[1]HeroPowerUpConfig!J98 -> 228 | D98: =[1]HeroPowerUpConfig!K98 -> 235 | E98: =[1]HeroPowerUpConfig!L98 -> 241 | F98: 化神期 | G98: 前 | H98: 4 | I98: =[2]主表!P96*(1+T98) -> 1209.277855 | J98: =[2]主表!Q96 -> 23.415 | K98: =[2]主表!R96 -> 23.415 | L98: =[2]主表!S96 -> 0 | M98: =[2]主表!$G96 -> 4683 | N98: 94 | O98: 2 | P98: 47 | Q98: 2 | R98: 100 | S98: 1 | T98: 0.3
A99: 95 | B99: 95 | C99: =[1]HeroPowerUpConfig!J99 -> 228 | D99: =[1]HeroPowerUpConfig!K99 -> 235 | E99: =[1]HeroPowerUpConfig!L99 -> 242 | F99: 化神期 | G99: 前 | H99: 5 | I99: =[2]主表!P97*(1+T99) -> 1247.231054 | J99: =[2]主表!Q97 -> 23.925 | K99: =[2]主表!R97 -> 23.925 | L99: =[2]主表!S97 -> 0 | M99: =[2]主表!$G97 -> 4785 | N99: 95 | O99: 2 | P99: 48 | Q99: 2 | R99: 100 | S99: 1 | T99: 0.3
A100: 96 | B100: 96 | C100: =[1]HeroPowerUpConfig!J100 -> 228 | D100: =[1]HeroPowerUpConfig!K100 -> 235 | E100: =[1]HeroPowerUpConfig!L100 -> 243 | F100: 化神期 | G100: 前 | H100: 6 | I100: =[2]主表!P98*(1+T100) -> 1286.20556 | J100: =[2]主表!Q98 -> 24.445 | K100: =[2]主表!R98 -> 24.445 | L100: =[2]主表!S98 -> 0 | M100: =[2]主表!$G98 -> 4889 | N100: 96 | O100: 2 | P100: 48 | Q100: 2 | R100: 100 | S100: 1 | T100: 0.3
A101: 97 | B101: 97 | C101: =[1]HeroPowerUpConfig!J101 -> 228 | D101: =[1]HeroPowerUpConfig!K101 -> 235 | E101: =[1]HeroPowerUpConfig!L101 -> 244 | F101: 化神期 | G101: 前 | H101: 7 | I101: =[2]主表!P99*(1+T101) -> 1326.481443 | J101: =[2]主表!Q99 -> 24.98 | K101: =[2]主表!R99 -> 24.98 | L101: =[2]主表!S99 -> 0 | M101: =[2]主表!$G99 -> 4996 | N101: 97 | O101: 2 | P101: 49 | Q101: 2 | R101: 100 | S101: 1 | T101: 0.3
A102: 98 | B102: 98 | C102: =[1]HeroPowerUpConfig!J102 -> 228 | D102: =[1]HeroPowerUpConfig!K102 -> 235 | E102: =[1]HeroPowerUpConfig!L102 -> 245 | F102: 化神期 | G102: 前 | H102: 8 | I102: =[2]主表!P100*(1+T102) -> 1367.812614 | J102: =[2]主表!Q100 -> 25.525 | K102: =[2]主表!R100 -> 25.525 | L102: =[2]主表!S100 -> 0 | M102: =[2]主表!$G100 -> 5105 | N102: 98 | O102: 2 | P102: 49 | Q102: 2 | R102: 100 | S102: 1 | T102: 0.3
A103: 99 | B103: 99 | C103: =[1]HeroPowerUpConfig!J103 -> 228 | D103: =[1]HeroPowerUpConfig!K103 -> 235 | E103: =[1]HeroPowerUpConfig!L103 -> 246 | F103: 化神期 | G103: 前 | H103: 9 | I103: =[2]主表!P101*(1+T103) -> 1410.483998 | J103: =[2]主表!Q101 -> 26.085 | K103: =[2]主表!R101 -> 26.085 | L103: =[2]主表!S101 -> 0 | M103: =[2]主表!$G101 -> 5217 | N103: 99 | O103: 2 | P103: 50 | Q103: 2 | R103: 100 | S103: 1 | T103: 0.3
A104: 100 | B104: 100 | C104: =[1]HeroPowerUpConfig!J104 -> 228 | D104: =[1]HeroPowerUpConfig!K104 -> 235 | E104: =[1]HeroPowerUpConfig!L104 -> 247 | F104: 化神期 | G104: 前 | H104: 10 | I104: =[2]主表!P102*(1+T104) -> 1454.517439 | J104: =[2]主表!Q102 -> 26.66 | K104: =[2]主表!R102 -> 26.66 | L104: =[2]主表!S102 -> 0 | M104: =[2]主表!$G102 -> 5332 | N104: 100 | O104: 2 | P104: 50 | Q104: 2 | R104: 100 | S104: 1 | T104: 0.3
A105: 101 | B105: 101 | C105: =[1]HeroPowerUpConfig!J105 -> 228 | D105: =[1]HeroPowerUpConfig!K105 -> 236 | E105: =[1]HeroPowerUpConfig!L105 -> 238 | F105: 化神期 | G105: 中 | H105: 1 | I105: =[2]主表!P103*(1+T105) -> 1655.157391 | J105: =[2]主表!Q103 -> 30.07 | K105: =[2]主表!R103 -> 30.07 | L105: =[2]主表!S103 -> 0 | M105: =[2]主表!$G103 -> 6014 | N105: 101 | O105: 3 | P105: 51 | Q105: 3 | R105: 100.1 | S105: 1 | T105: 0.3
A106: 102 | B106: 102 | C106: =[1]HeroPowerUpConfig!J106 -> 228 | D106: =[1]HeroPowerUpConfig!K106 -> 236 | E106: =[1]HeroPowerUpConfig!L106 -> 239 | F106: 化神期 | G106: 中 | H106: 2 | I106: =[2]主表!P104*(1+T106) -> 1698.907095 | J106: =[2]主表!Q104 -> 30.595 | K106: =[2]主表!R104 -> 30.595 | L106: =[2]主表!S104 -> 0 | M106: =[2]主表!$G104 -> 6119 | N106: 102 | O106: 3 | P106: 51 | Q106: 3 | R106: 100.2 | S106: 1 | T106: 0.3
A107: 103 | B107: 103 | C107: =[1]HeroPowerUpConfig!J107 -> 228 | D107: =[1]HeroPowerUpConfig!K107 -> 236 | E107: =[1]HeroPowerUpConfig!L107 -> 240 | F107: 化神期 | G107: 中 | H107: 3 | I107: =[2]主表!P105*(1+T107) -> 1743.446576 | J107: =[2]主表!Q105 -> 31.125 | K107: =[2]主表!R105 -> 31.125 | L107: =[2]主表!S105 -> 0 | M107: =[2]主表!$G105 -> 6225 | N107: 103 | O107: 3 | P107: 52 | Q107: 3 | R107: 100.3 | S107: 1 | T107: 0.3
A108: 104 | B108: 104 | C108: =[1]HeroPowerUpConfig!J108 -> 228 | D108: =[1]HeroPowerUpConfig!K108 -> 236 | E108: =[1]HeroPowerUpConfig!L108 -> 241 | F108: 化神期 | G108: 中 | H108: 4 | I108: =[2]主表!P106*(1+T108) -> 1789.065616 | J108: =[2]主表!Q106 -> 31.665 | K108: =[2]主表!R106 -> 31.665 | L108: =[2]主表!S106 -> 0 | M108: =[2]主表!$G106 -> 6333 | N108: 104 | O108: 3 | P108: 52 | Q108: 3 | R108: 100.4 | S108: 1 | T108: 0.3
A109: 105 | B109: 105 | C109: =[1]HeroPowerUpConfig!J109 -> 228 | D109: =[1]HeroPowerUpConfig!K109 -> 236 | E109: =[1]HeroPowerUpConfig!L109 -> 242 | F109: 化神期 | G109: 中 | H109: 5 | I109: =[2]主表!P107*(1+T109) -> 1835.778778 | J109: =[2]主表!Q107 -> 32.215 | K109: =[2]主表!R107 -> 32.215 | L109: =[2]主表!S107 -> 0 | M109: =[2]主表!$G107 -> 6443 | N109: 105 | O109: 3 | P109: 53 | Q109: 3 | R109: 100.5 | S109: 1 | T109: 0.3
A110: 106 | B110: 106 | C110: =[1]HeroPowerUpConfig!J110 -> 228 | D110: =[1]HeroPowerUpConfig!K110 -> 236 | E110: =[1]HeroPowerUpConfig!L110 -> 243 | F110: 化神期 | G110: 中 | H110: 6 | I110: =[2]主表!P108*(1+T110) -> 1883.600625 | J110: =[2]主表!Q108 -> 32.775 | K110: =[2]主表!R108 -> 32.775 | L110: =[2]主表!S108 -> 0 | M110: =[2]主表!$G108 -> 6555 | N110: 106 | O110: 3 | P110: 53 | Q110: 3 | R110: 100.6 | S110: 1 | T110: 0.3
A111: 107 | B111: 107 | C111: =[1]HeroPowerUpConfig!J111 -> 228 | D111: =[1]HeroPowerUpConfig!K111 -> 236 | E111: =[1]HeroPowerUpConfig!L111 -> 244 | F111: 化神期 | G111: 中 | H111: 7 | I111: =[2]主表!P109*(1+T111) -> 1932.255939 | J111: =[2]主表!Q109 -> 33.34 | K111: =[2]主表!R109 -> 33.34 | L111: =[2]主表!S109 -> 0 | M111: =[2]主表!$G109 -> 6668 | N111: 107 | O111: 3 | P111: 54 | Q111: 3 | R111: 100.7 | S111: 1 | T111: 0.3
A112: 108 | B112: 108 | C112: =[1]HeroPowerUpConfig!J112 -> 228 | D112: =[1]HeroPowerUpConfig!K112 -> 236 | E112: =[1]HeroPowerUpConfig!L112 -> 245 | F112: 化神期 | G112: 中 | H112: 8 | I112: =[2]主表!P110*(1+T112) -> 1982.04421 | J112: =[2]主表!Q110 -> 33.915 | K112: =[2]主表!R110 -> 33.915 | L112: =[2]主表!S110 -> 0 | M112: =[2]主表!$G110 -> 6783 | N112: 108 | O112: 3 | P112: 54 | Q112: 3 | R112: 100.8 | S112: 1 | T112: 0.3
A113: 109 | B113: 109 | C113: =[1]HeroPowerUpConfig!J113 -> 228 | D113: =[1]HeroPowerUpConfig!K113 -> 236 | E113: =[1]HeroPowerUpConfig!L113 -> 246 | F113: 化神期 | G113: 中 | H113: 9 | I113: =[2]主表!P111*(1+T113) -> 2033.274635 | J113: =[2]主表!Q111 -> 34.505 | K113: =[2]主表!R111 -> 34.505 | L113: =[2]主表!S111 -> 0 | M113: =[2]主表!$G111 -> 6901 | N113: 109 | O113: 3 | P113: 55 | Q113: 3 | R113: 100.9 | S113: 1 | T113: 0.3
A114: 110 | B114: 110 | C114: =[1]HeroPowerUpConfig!J114 -> 228 | D114: =[1]HeroPowerUpConfig!K114 -> 236 | E114: =[1]HeroPowerUpConfig!L114 -> 247 | F114: 化神期 | G114: 中 | H114: 10 | I114: =[2]主表!P112*(1+T114) -> 2085.374935 | J114: =[2]主表!Q112 -> 35.1 | K114: =[2]主表!R112 -> 35.1 | L114: =[2]主表!S112 -> 0 | M114: =[2]主表!$G112 -> 7020 | N114: 110 | O114: 3 | P114: 55 | Q114: 3 | R114: 101 | S114: 1 | T114: 0.3
A115: 111 | B115: 111 | C115: =[1]HeroPowerUpConfig!J115 -> 228 | D115: =[1]HeroPowerUpConfig!K115 -> 237 | E115: =[1]HeroPowerUpConfig!L115 -> 238 | F115: 化神期 | G115: 后 | H115: 1 | I115: =[2]主表!P113*(1+T115) -> 2370.755957 | J115: =[2]主表!Q113 -> 39.58 | K115: =[2]主表!R113 -> 39.58 | L115: =[2]主表!S113 -> 0 | M115: =[2]主表!$G113 -> 7916 | N115: 111 | O115: 3 | P115: 56 | Q115: 3 | R115: 101.1 | S115: 1 | T115: 0.3
A116: 112 | B116: 112 | C116: =[1]HeroPowerUpConfig!J116 -> 228 | D116: =[1]HeroPowerUpConfig!K116 -> 237 | E116: =[1]HeroPowerUpConfig!L116 -> 239 | F116: 化神期 | G116: 后 | H116: 2 | I116: =[2]主表!P114*(1+T116) -> 2430.728166 | J116: =[2]主表!Q114 -> 40.255 | K116: =[2]主表!R114 -> 40.255 | L116: =[2]主表!S114 -> 0 | M116: =[2]主表!$G114 -> 8051 | N116: 112 | O116: 3 | P116: 56 | Q116: 3 | R116: 101.2 | S116: 1 | T116: 0.3
A117: 113 | B117: 113 | C117: =[1]HeroPowerUpConfig!J117 -> 228 | D117: =[1]HeroPowerUpConfig!K117 -> 237 | E117: =[1]HeroPowerUpConfig!L117 -> 240 | F117: 化神期 | G117: 后 | H117: 3 | I117: =[2]主表!P115*(1+T117) -> 2491.9644 | J117: =[2]主表!Q115 -> 40.94 | K117: =[2]主表!R115 -> 40.94 | L117: =[2]主表!S115 -> 0 | M117: =[2]主表!$G115 -> 8188 | N117: 113 | O117: 3 | P117: 57 | Q117: 3 | R117: 101.3 | S117: 1 | T117: 0.3
A118: 114 | B118: 114 | C118: =[1]HeroPowerUpConfig!J118 -> 228 | D118: =[1]HeroPowerUpConfig!K118 -> 237 | E118: =[1]HeroPowerUpConfig!L118 -> 241 | F118: 化神期 | G118: 后 | H118: 4 | I118: =[2]主表!P116*(1+T118) -> 2554.479221 | J118: =[2]主表!Q116 -> 41.635 | K118: =[2]主表!R116 -> 41.635 | L118: =[2]主表!S116 -> 0 | M118: =[2]主表!$G116 -> 8327 | N118: 114 | O118: 3 | P118: 57 | Q118: 3 | R118: 101.4 | S118: 1 | T118: 0.3
A119: 115 | B119: 115 | C119: =[1]HeroPowerUpConfig!J119 -> 228 | D119: =[1]HeroPowerUpConfig!K119 -> 237 | E119: =[1]HeroPowerUpConfig!L119 -> 242 | F119: 化神期 | G119: 后 | H119: 5 | I119: =[2]主表!P117*(1+T119) -> 2618.596389 | J119: =[2]主表!Q117 -> 42.345 | K119: =[2]主表!R117 -> 42.345 | L119: =[2]主表!S117 -> 0 | M119: =[2]主表!$G117 -> 8469 | N119: 115 | O119: 3 | P119: 58 | Q119: 3 | R119: 101.5 | S119: 1 | T119: 0.3
A120: 116 | B120: 116 | C120: =[1]HeroPowerUpConfig!J120 -> 228 | D120: =[1]HeroPowerUpConfig!K120 -> 237 | E120: =[1]HeroPowerUpConfig!L120 -> 243 | F120: 化神期 | G120: 后 | H120: 6 | I120: =[2]主表!P118*(1+T120) -> 2684.026125 | J120: =[2]主表!Q118 -> 43.065 | K120: =[2]主表!R118 -> 43.065 | L120: =[2]主表!S118 -> 0 | M120: =[2]主表!$G118 -> 8613 | N120: 116 | O120: 3 | P120: 58 | Q120: 3 | R120: 101.6 | S120: 1 | T120: 0.3
A121: 117 | B121: 117 | C121: =[1]HeroPowerUpConfig!J121 -> 228 | D121: =[1]HeroPowerUpConfig!K121 -> 237 | E121: =[1]HeroPowerUpConfig!L121 -> 244 | F121: 化神期 | G121: 后 | H121: 7 | I121: =[2]主表!P119*(1+T121) -> 2750.782991 | J121: =[2]主表!Q119 -> 43.795 | K121: =[2]主表!R119 -> 43.795 | L121: =[2]主表!S119 -> 0 | M121: =[2]主表!$G119 -> 8759 | N121: 117 | O121: 3 | P121: 59 | Q121: 3 | R121: 101.7 | S121: 1 | T121: 0.3
A122: 118 | B122: 118 | C122: =[1]HeroPowerUpConfig!J122 -> 228 | D122: =[1]HeroPowerUpConfig!K122 -> 237 | E122: =[1]HeroPowerUpConfig!L122 -> 245 | F122: 化神期 | G122: 后 | H122: 8 | I122: =[2]主表!P120*(1+T122) -> 2819.19803 | J122: =[2]主表!Q120 -> 44.54 | K122: =[2]主表!R120 -> 44.54 | L122: =[2]主表!S120 -> 0 | M122: =[2]主表!$G120 -> 8908 | N122: 118 | O122: 3 | P122: 59 | Q122: 3 | R122: 101.8 | S122: 1 | T122: 0.3
A123: 119 | B123: 119 | C123: =[1]HeroPowerUpConfig!J123 -> 228 | D123: =[1]HeroPowerUpConfig!K123 -> 237 | E123: =[1]HeroPowerUpConfig!L123 -> 246 | F123: 化神期 | G123: 后 | H123: 9 | I123: =[2]主表!P121*(1+T123) -> 2888.97418 | J123: =[2]主表!Q121 -> 45.295 | K123: =[2]主表!R121 -> 45.295 | L123: =[2]主表!S121 -> 0 | M123: =[2]主表!$G121 -> 9059 | N123: 119 | O123: 3 | P123: 60 | Q123: 3 | R123: 101.9 | S123: 1 | T123: 0.3
A124: 120 | B124: 120 | C124: =[1]HeroPowerUpConfig!J124 -> 228 | D124: =[1]HeroPowerUpConfig!K124 -> 237 | E124: =[1]HeroPowerUpConfig!L124 -> 247 | F124: 化神期 | G124: 后 | H124: 10 | I124: =[2]主表!P122*(1+T124) -> 2960.447338 | J124: =[2]主表!Q122 -> 46.065 | K124: =[2]主表!R122 -> 46.065 | L124: =[2]主表!S122 -> 0 | M124: =[2]主表!$G122 -> 9213 | N124: 120 | O124: 3 | P124: 60 | Q124: 3 | R124: 102 | S124: 1 | T124: 0.3
A125: 121 | B125: 121 | C125: =[1]HeroPowerUpConfig!J125 -> 229 | D125: =[1]HeroPowerUpConfig!K125 -> 235 | E125: =[1]HeroPowerUpConfig!L125 -> 238 | F125: 炼虚期 | G125: 前 | H125: 1 | I125: =[2]主表!P123*(1+T125) -> 3970.279543 | J125: =[2]主表!Q123 -> 61.315 | K125: =[2]主表!R123 -> 61.315 | L125: =[2]主表!S123 -> 0 | M125: =[2]主表!$G123 -> 12263 | N125: 121 | O125: 3 | P125: 61 | Q125: 3 | R125: 102.1 | S125: 1 | T125: 0.3
A126: 122 | B126: 122 | C126: =[1]HeroPowerUpConfig!J126 -> 229 | D126: =[1]HeroPowerUpConfig!K126 -> 235 | E126: =[1]HeroPowerUpConfig!L126 -> 239 | F126: 炼虚期 | G126: 前 | H126: 2 | I126: =[2]主表!P124*(1+T126) -> 4063.324458 | J126: =[2]主表!Q124 -> 62.285 | K126: =[2]主表!R124 -> 62.285 | L126: =[2]主表!S124 -> 0 | M126: =[2]主表!$G124 -> 12457 | N126: 122 | O126: 3 | P126: 61 | Q126: 3 | R126: 102.2 | S126: 1 | T126: 0.3
A127: 123 | B127: 123 | C127: =[1]HeroPowerUpConfig!J127 -> 229 | D127: =[1]HeroPowerUpConfig!K127 -> 235 | E127: =[1]HeroPowerUpConfig!L127 -> 240 | F127: 炼虚期 | G127: 前 | H127: 3 | I127: =[2]主表!P125*(1+T127) -> 4158.625576 | J127: =[2]主表!Q125 -> 63.275 | K127: =[2]主表!R125 -> 63.275 | L127: =[2]主表!S125 -> 0 | M127: =[2]主表!$G125 -> 12655 | N127: 123 | O127: 3 | P127: 62 | Q127: 3 | R127: 102.3 | S127: 1 | T127: 0.3
A128: 124 | B128: 124 | C128: =[1]HeroPowerUpConfig!J128 -> 229 | D128: =[1]HeroPowerUpConfig!K128 -> 235 | E128: =[1]HeroPowerUpConfig!L128 -> 241 | F128: 炼虚期 | G128: 前 | H128: 4 | I128: =[2]主表!P126*(1+T128) -> 4255.54994 | J128: =[2]主表!Q126 -> 64.275 | K128: =[2]主表!R126 -> 64.275 | L128: =[2]主表!S126 -> 0 | M128: =[2]主表!$G126 -> 12855 | N128: 124 | O128: 3 | P128: 62 | Q128: 3 | R128: 102.4 | S128: 1 | T128: 0.3
A129: 125 | B129: 125 | C129: =[1]HeroPowerUpConfig!J129 -> 229 | D129: =[1]HeroPowerUpConfig!K129 -> 235 | E129: =[1]HeroPowerUpConfig!L129 -> 242 | F129: 炼虚期 | G129: 前 | H129: 5 | I129: =[2]主表!P127*(1+T129) -> 4354.779052 | J129: =[2]主表!Q127 -> 65.295 | K129: =[2]主表!R127 -> 65.295 | L129: =[2]主表!S127 -> 0 | M129: =[2]主表!$G127 -> 13059 | N129: 125 | O129: 3 | P129: 63 | Q129: 3 | R129: 102.5 | S129: 1 | T129: 0.3
A130: 126 | B130: 126 | C130: =[1]HeroPowerUpConfig!J130 -> 229 | D130: =[1]HeroPowerUpConfig!K130 -> 235 | E130: =[1]HeroPowerUpConfig!L130 -> 243 | F130: 炼虚期 | G130: 前 | H130: 6 | I130: =[2]主表!P128*(1+T130) -> 4451.639484 | J130: =[2]主表!Q128 -> 66.265 | K130: =[2]主表!R128 -> 66.265 | L130: =[2]主表!S128 -> 0 | M130: =[2]主表!$G128 -> 13253 | N130: 126 | O130: 3 | P130: 63 | Q130: 3 | R130: 102.6 | S130: 1 | T130: 0.3
A131: 127 | B131: 127 | C131: =[1]HeroPowerUpConfig!J131 -> 229 | D131: =[1]HeroPowerUpConfig!K131 -> 235 | E131: =[1]HeroPowerUpConfig!L131 -> 244 | F131: 炼虚期 | G131: 前 | H131: 7 | I131: =[2]主表!P129*(1+T131) -> 4550.45663 | J131: =[2]主表!Q129 -> 67.25 | K131: =[2]主表!R129 -> 67.25 | L131: =[2]主表!S129 -> 0 | M131: =[2]主表!$G129 -> 13450 | N131: 127 | O131: 3 | P131: 64 | Q131: 3 | R131: 102.7 | S131: 1 | T131: 0.3
A132: 128 | B132: 128 | C132: =[1]HeroPowerUpConfig!J132 -> 229 | D132: =[1]HeroPowerUpConfig!K132 -> 235 | E132: =[1]HeroPowerUpConfig!L132 -> 245 | F132: 炼虚期 | G132: 前 | H132: 8 | I132: =[2]主表!P130*(1+T132) -> 4651.252337 | J132: =[2]主表!Q130 -> 68.25 | K132: =[2]主表!R130 -> 68.25 | L132: =[2]主表!S130 -> 0 | M132: =[2]主表!$G130 -> 13650 | N132: 128 | O132: 3 | P132: 64 | Q132: 3 | R132: 102.8 | S132: 1 | T132: 0.3
A133: 129 | B133: 129 | C133: =[1]HeroPowerUpConfig!J133 -> 229 | D133: =[1]HeroPowerUpConfig!K133 -> 235 | E133: =[1]HeroPowerUpConfig!L133 -> 246 | F133: 炼虚期 | G133: 前 | H133: 9 | I133: =[2]主表!P131*(1+T133) -> 4754.048448 | J133: =[2]主表!Q131 -> 69.265 | K133: =[2]主表!R131 -> 69.265 | L133: =[2]主表!S131 -> 0 | M133: =[2]主表!$G131 -> 13853 | N133: 129 | O133: 3 | P133: 65 | Q133: 3 | R133: 102.9 | S133: 1 | T133: 0.3
A134: 130 | B134: 130 | C134: =[1]HeroPowerUpConfig!J134 -> 229 | D134: =[1]HeroPowerUpConfig!K134 -> 235 | E134: =[1]HeroPowerUpConfig!L134 -> 247 | F134: 炼虚期 | G134: 前 | H134: 10 | I134: =[2]主表!P132*(1+T134) -> 4858.866808 | J134: =[2]主表!Q132 -> 70.295 | K134: =[2]主表!R132 -> 70.295 | L134: =[2]主表!S132 -> 0 | M134: =[2]主表!$G132 -> 14059 | N134: 130 | O134: 3 | P134: 65 | Q134: 3 | R134: 103 | S134: 1 | T134: 0.3
A135: 131 | B135: 131 | C135: =[1]HeroPowerUpConfig!J135 -> 229 | D135: =[1]HeroPowerUpConfig!K135 -> 236 | E135: =[1]HeroPowerUpConfig!L135 -> 238 | F135: 炼虚期 | G135: 中 | H135: 1 | I135: =[2]主表!P133*(1+T135) -> 5505.179804 | J135: =[2]主表!Q133 -> 79.09 | K135: =[2]主表!R133 -> 79.09 | L135: =[2]主表!S133 -> 0 | M135: =[2]主表!$G133 -> 15818 | N135: 131 | O135: 3 | P135: 66 | Q135: 3 | R135: 103.1 | S135: 1 | T135: 0.3
A136: 132 | B136: 132 | C136: =[1]HeroPowerUpConfig!J136 -> 229 | D136: =[1]HeroPowerUpConfig!K136 -> 236 | E136: =[1]HeroPowerUpConfig!L136 -> 239 | F136: 炼虚期 | G136: 中 | H136: 2 | I136: =[2]主表!P134*(1+T136) -> 5624.879511 | J136: =[2]主表!Q134 -> 80.25 | K136: =[2]主表!R134 -> 80.25 | L136: =[2]主表!S134 -> 0 | M136: =[2]主表!$G134 -> 16050 | N136: 132 | O136: 3 | P136: 66 | Q136: 3 | R136: 103.2 | S136: 1 | T136: 0.3
A137: 133 | B137: 133 | C137: =[1]HeroPowerUpConfig!J137 -> 229 | D137: =[1]HeroPowerUpConfig!K137 -> 236 | E137: =[1]HeroPowerUpConfig!L137 -> 240 | F137: 炼虚期 | G137: 中 | H137: 3 | I137: =[2]主表!P135*(1+T137) -> 5747.116974 | J137: =[2]主表!Q135 -> 81.43 | K137: =[2]主表!R135 -> 81.43 | L137: =[2]主表!S135 -> 0 | M137: =[2]主表!$G135 -> 16286 | N137: 133 | O137: 3 | P137: 67 | Q137: 3 | R137: 103.3 | S137: 1 | T137: 0.3
A138: 134 | B138: 134 | C138: =[1]HeroPowerUpConfig!J138 -> 229 | D138: =[1]HeroPowerUpConfig!K138 -> 236 | E138: =[1]HeroPowerUpConfig!L138 -> 241 | F138: 炼虚期 | G138: 中 | H138: 4 | I138: =[2]主表!P136*(1+T138) -> 5871.566005 | J138: =[2]主表!Q136 -> 82.625 | K138: =[2]主表!R136 -> 82.625 | L138: =[2]主表!S136 -> 0 | M138: =[2]主表!$G136 -> 16525 | N138: 134 | O138: 3 | P138: 67 | Q138: 3 | R138: 103.4 | S138: 1 | T138: 0.3
A139: 135 | B139: 135 | C139: =[1]HeroPowerUpConfig!J139 -> 229 | D139: =[1]HeroPowerUpConfig!K139 -> 236 | E139: =[1]HeroPowerUpConfig!L139 -> 242 | F139: 炼虚期 | G139: 中 | H139: 5 | I139: =[2]主表!P137*(1+T139) -> 5998.963933 | J139: =[2]主表!Q137 -> 83.845 | K139: =[2]主表!R137 -> 83.845 | L139: =[2]主表!S137 -> 0 | M139: =[2]主表!$G137 -> 16769 | N139: 135 | O139: 3 | P139: 68 | Q139: 3 | R139: 103.5 | S139: 1 | T139: 0.3
A140: 136 | B140: 136 | C140: =[1]HeroPowerUpConfig!J140 -> 229 | D140: =[1]HeroPowerUpConfig!K140 -> 236 | E140: =[1]HeroPowerUpConfig!L140 -> 243 | F140: 炼虚期 | G140: 中 | H140: 6 | I140: =[2]主表!P138*(1+T140) -> 6128.626826 | J140: =[2]主表!Q138 -> 85.08 | K140: =[2]主表!R138 -> 85.08 | L140: =[2]主表!S138 -> 0 | M140: =[2]主表!$G138 -> 17016 | N140: 136 | O140: 3 | P140: 68 | Q140: 3 | R140: 103.6 | S140: 1 | T140: 0.3
A141: 137 | B141: 137 | C141: =[1]HeroPowerUpConfig!J141 -> 229 | D141: =[1]HeroPowerUpConfig!K141 -> 236 | E141: =[1]HeroPowerUpConfig!L141 -> 244 | F141: 炼虚期 | G141: 中 | H141: 7 | I141: =[2]主表!P139*(1+T141) -> 6260.939126 | J141: =[2]主表!Q139 -> 86.335 | K141: =[2]主表!R139 -> 86.335 | L141: =[2]主表!S139 -> 0 | M141: =[2]主表!$G139 -> 17267 | N141: 137 | O141: 3 | P141: 69 | Q141: 3 | R141: 103.7 | S141: 1 | T141: 0.3
A142: 138 | B142: 138 | C142: =[1]HeroPowerUpConfig!J142 -> 229 | D142: =[1]HeroPowerUpConfig!K142 -> 236 | E142: =[1]HeroPowerUpConfig!L142 -> 245 | F142: 炼虚期 | G142: 中 | H142: 8 | I142: =[2]主表!P140*(1+T142) -> 6395.564936 | J142: =[2]主表!Q140 -> 87.605 | K142: =[2]主表!R140 -> 87.605 | L142: =[2]主表!S140 -> 0 | M142: =[2]主表!$G140 -> 17521 | N142: 138 | O142: 3 | P142: 69 | Q142: 3 | R142: 103.8 | S142: 1 | T142: 0.3
A143: 139 | B143: 139 | C143: =[1]HeroPowerUpConfig!J143 -> 229 | D143: =[1]HeroPowerUpConfig!K143 -> 236 | E143: =[1]HeroPowerUpConfig!L143 -> 246 | F143: 炼虚期 | G143: 中 | H143: 9 | I143: =[2]主表!P141*(1+T143) -> 6533.261 | J143: =[2]主表!Q141 -> 88.9 | K143: =[2]主表!R141 -> 88.9 | L143: =[2]主表!S141 -> 0 | M143: =[2]主表!$G141 -> 17780 | N143: 139 | O143: 3 | P143: 70 | Q143: 3 | R143: 103.9 | S143: 1 | T143: 0.3
A144: 140 | B144: 140 | C144: =[1]HeroPowerUpConfig!J144 -> 229 | D144: =[1]HeroPowerUpConfig!K144 -> 236 | E144: =[1]HeroPowerUpConfig!L144 -> 247 | F144: 炼虚期 | G144: 中 | H144: 10 | I144: =[2]主表!P142*(1+T144) -> 6673.693849 | J144: =[2]主表!Q142 -> 90.215 | K144: =[2]主表!R142 -> 90.215 | L144: =[2]主表!S142 -> 0 | M144: =[2]主表!$G142 -> 18043 | N144: 140 | O144: 3 | P144: 70 | Q144: 3 | R144: 104 | S144: 1 | T144: 0.3
A145: 141 | B145: 141 | C145: =[1]HeroPowerUpConfig!J145 -> 229 | D145: =[1]HeroPowerUpConfig!K145 -> 237 | E145: =[1]HeroPowerUpConfig!L145 -> 238 | F145: 炼虚期 | G145: 后 | H145: 1 | I145: =[2]主表!P143*(1+T145) -> 7557.033652 | J145: =[2]主表!Q143 -> 101.49 | K145: =[2]主表!R143 -> 101.49 | L145: =[2]主表!S143 -> 0 | M145: =[2]主表!$G143 -> 20298 | N145: 141 | O145: 3 | P145: 71 | Q145: 3 | R145: 104.1 | S145: 1 | T145: 0.3
A146: 142 | B146: 142 | C146: =[1]HeroPowerUpConfig!J146 -> 229 | D146: =[1]HeroPowerUpConfig!K146 -> 237 | E146: =[1]HeroPowerUpConfig!L146 -> 239 | F146: 炼虚期 | G146: 后 | H146: 2 | I146: =[2]主表!P144*(1+T146) -> 7716.846227 | J146: =[2]主表!Q144 -> 102.965 | K146: =[2]主表!R144 -> 102.965 | L146: =[2]主表!S144 -> 0 | M146: =[2]主表!$G144 -> 20593 | N146: 142 | O146: 3 | P146: 71 | Q146: 3 | R146: 104.2 | S146: 1 | T146: 0.3
A147: 143 | B147: 143 | C147: =[1]HeroPowerUpConfig!J147 -> 229 | D147: =[1]HeroPowerUpConfig!K147 -> 237 | E147: =[1]HeroPowerUpConfig!L147 -> 240 | F147: 炼虚期 | G147: 后 | H147: 3 | I147: =[2]主表!P145*(1+T147) -> 7880.353787 | J147: =[2]主表!Q145 -> 104.47 | K147: =[2]主表!R145 -> 104.47 | L147: =[2]主表!S145 -> 0 | M147: =[2]主表!$G145 -> 20894 | N147: 143 | O147: 3 | P147: 72 | Q147: 3 | R147: 104.3 | S147: 1 | T147: 0.3
A148: 144 | B148: 144 | C148: =[1]HeroPowerUpConfig!J148 -> 229 | D148: =[1]HeroPowerUpConfig!K148 -> 237 | E148: =[1]HeroPowerUpConfig!L148 -> 241 | F148: 炼虚期 | G148: 后 | H148: 4 | I148: =[2]主表!P146*(1+T148) -> 8046.840849 | J148: =[2]主表!Q146 -> 105.995 | K148: =[2]主表!R146 -> 105.995 | L148: =[2]主表!S146 -> 0 | M148: =[2]主表!$G146 -> 21199 | N148: 144 | O148: 3 | P148: 72 | Q148: 3 | R148: 104.4 | S148: 1 | T148: 0.3
A149: 145 | B149: 145 | C149: =[1]HeroPowerUpConfig!J149 -> 229 | D149: =[1]HeroPowerUpConfig!K149 -> 237 | E149: =[1]HeroPowerUpConfig!L149 -> 242 | F149: 炼虚期 | G149: 后 | H149: 5 | I149: =[2]主表!P147*(1+T149) -> 8216.336539 | J149: =[2]主表!Q147 -> 107.54 | K149: =[2]主表!R147 -> 107.54 | L149: =[2]主表!S147 -> 0 | M149: =[2]主表!$G147 -> 21508 | N149: 145 | O149: 3 | P149: 73 | Q149: 3 | R149: 104.5 | S149: 1 | T149: 0.3
A150: 146 | B150: 146 | C150: =[1]HeroPowerUpConfig!J150 -> 229 | D150: =[1]HeroPowerUpConfig!K150 -> 237 | E150: =[1]HeroPowerUpConfig!L150 -> 243 | F150: 炼虚期 | G150: 后 | H150: 6 | I150: =[2]主表!P148*(1+T150) -> 8389.638864 | J150: =[2]主表!Q148 -> 109.115 | K150: =[2]主表!R148 -> 109.115 | L150: =[2]主表!S148 -> 0 | M150: =[2]主表!$G148 -> 21823 | N150: 146 | O150: 3 | P150: 73 | Q150: 3 | R150: 104.6 | S150: 1 | T150: 0.3
A151: 147 | B151: 147 | C151: =[1]HeroPowerUpConfig!J151 -> 229 | D151: =[1]HeroPowerUpConfig!K151 -> 237 | E151: =[1]HeroPowerUpConfig!L151 -> 244 | F151: 炼虚期 | G151: 后 | H151: 7 | I151: =[2]主表!P149*(1+T151) -> 8566.017778 | J151: =[2]主表!Q149 -> 110.71 | K151: =[2]主表!R149 -> 110.71 | L151: =[2]主表!S149 -> 0 | M151: =[2]主表!$G149 -> 22142 | N151: 147 | O151: 3 | P151: 74 | Q151: 3 | R151: 104.7 | S151: 1 | T151: 0.3
A152: 148 | B152: 148 | C152: =[1]HeroPowerUpConfig!J152 -> 229 | D152: =[1]HeroPowerUpConfig!K152 -> 237 | E152: =[1]HeroPowerUpConfig!L152 -> 245 | F152: 炼虚期 | G152: 后 | H152: 8 | I152: =[2]主表!P150*(1+T152) -> 8746.280997 | J152: =[2]主表!Q150 -> 112.335 | K152: =[2]主表!R150 -> 112.335 | L152: =[2]主表!S150 -> 0 | M152: =[2]主表!$G150 -> 22467 | N152: 148 | O152: 3 | P152: 74 | Q152: 3 | R152: 104.8 | S152: 1 | T152: 0.3
A153: 149 | B153: 149 | C153: =[1]HeroPowerUpConfig!J153 -> 229 | D153: =[1]HeroPowerUpConfig!K153 -> 237 | E153: =[1]HeroPowerUpConfig!L153 -> 246 | F153: 炼虚期 | G153: 后 | H153: 9 | I153: =[2]主表!P151*(1+T153) -> 8929.688765 | J153: =[2]主表!Q151 -> 113.98 | K153: =[2]主表!R151 -> 113.98 | L153: =[2]主表!S151 -> 0 | M153: =[2]主表!$G151 -> 22796 | N153: 149 | O153: 3 | P153: 75 | Q153: 3 | R153: 104.9 | S153: 1 | T153: 0.3
A154: 150 | B154: 150 | C154: =[1]HeroPowerUpConfig!J154 -> 229 | D154: =[1]HeroPowerUpConfig!K154 -> 237 | E154: =[1]HeroPowerUpConfig!L154 -> 247 | F154: 炼虚期 | G154: 后 | H154: 10 | I154: =[2]主表!P152*(1+T154) -> 9117.058508 | J154: =[2]主表!Q152 -> 115.655 | K154: =[2]主表!R152 -> 115.655 | L154: =[2]主表!S152 -> 0 | M154: =[2]主表!$G152 -> 23131 | N154: 150 | O154: 3 | P154: 75 | Q154: 3 | R154: 105 | S154: 1 | T154: 0.3 | X154: =I154*219 -> 1996635.813
A155: 151 | B155: 151 | C155: =[1]HeroPowerUpConfig!J155 -> 230 | D155: =[1]HeroPowerUpConfig!K155 -> 235 | E155: =[1]HeroPowerUpConfig!L155 -> 238 | F155: 合体期 | G155: 前 | H155: 1 | I155: =[2]主表!P153*(1+T155) -> 12194.3181 | J155: =[2]主表!Q153 -> 153.745 | K155: =[2]主表!R153 -> 153.745 | L155: =[2]主表!S153 -> 0 | M155: =[2]主表!$G153 -> 30749 | N155: 151 | O155: 4 | P155: 76 | Q155: 4 | R155: 105.1 | S155: 1 | T155: 0.3
A156: 152 | B156: 152 | C156: =[1]HeroPowerUpConfig!J156 -> 230 | D156: =[1]HeroPowerUpConfig!K156 -> 235 | E156: =[1]HeroPowerUpConfig!L156 -> 239 | F156: 合体期 | G156: 前 | H156: 2 | I156: =[2]主表!P154*(1+T156) -> 12446.50772 | J156: =[2]主表!Q154 -> 155.97 | K156: =[2]主表!R154 -> 155.97 | L156: =[2]主表!S154 -> 0 | M156: =[2]主表!$G154 -> 31194 | N156: 152 | O156: 4 | P156: 76 | Q156: 4 | R156: 105.2 | S156: 1 | T156: 0.3
A157: 153 | B157: 153 | C157: =[1]HeroPowerUpConfig!J157 -> 230 | D157: =[1]HeroPowerUpConfig!K157 -> 235 | E157: =[1]HeroPowerUpConfig!L157 -> 240 | F157: 合体期 | G157: 前 | H157: 3 | I157: =[2]主表!P155*(1+T157) -> 12703.26611 | J157: =[2]主表!Q155 -> 158.225 | K157: =[2]主表!R155 -> 158.225 | L157: =[2]主表!S155 -> 0 | M157: =[2]主表!$G155 -> 31645 | N157: 153 | O157: 4 | P157: 77 | Q157: 4 | R157: 105.3 | S157: 1 | T157: 0.3
A158: 154 | B158: 154 | C158: =[1]HeroPowerUpConfig!J158 -> 230 | D158: =[1]HeroPowerUpConfig!K158 -> 235 | E158: =[1]HeroPowerUpConfig!L158 -> 241 | F158: 合体期 | G158: 前 | H158: 4 | I158: =[2]主表!P156*(1+T158) -> 12965.44467 | J158: =[2]主表!Q156 -> 160.52 | K158: =[2]主表!R156 -> 160.52 | L158: =[2]主表!S156 -> 0 | M158: =[2]主表!$G156 -> 32104 | N158: 154 | O158: 4 | P158: 77 | Q158: 4 | R158: 105.4 | S158: 1 | T158: 0.3
A159: 155 | B159: 155 | C159: =[1]HeroPowerUpConfig!J159 -> 230 | D159: =[1]HeroPowerUpConfig!K159 -> 235 | E159: =[1]HeroPowerUpConfig!L159 -> 242 | F159: 合体期 | G159: 前 | H159: 5 | I159: =[2]主表!P157*(1+T159) -> 13232.69537 | J159: =[2]主表!Q157 -> 162.85 | K159: =[2]主表!R157 -> 162.85 | L159: =[2]主表!S157 -> 0 | M159: =[2]主表!$G157 -> 32570 | N159: 155 | O159: 4 | P159: 78 | Q159: 4 | R159: 105.5 | S159: 1 | T159: 0.3
A160: 156 | B160: 156 | C160: =[1]HeroPowerUpConfig!J160 -> 230 | D160: =[1]HeroPowerUpConfig!K160 -> 235 | E160: =[1]HeroPowerUpConfig!L160 -> 243 | F160: 合体期 | G160: 前 | H160: 6 | I160: =[2]主表!P158*(1+T160) -> 13505.06918 | J160: =[2]主表!Q158 -> 165.215 | K160: =[2]主表!R158 -> 165.215 | L160: =[2]主表!S158 -> 0 | M160: =[2]主表!$G158 -> 33043 | N160: 156 | O160: 4 | P160: 78 | Q160: 4 | R160: 105.6 | S160: 1 | T160: 0.3
A161: 157 | B161: 157 | C161: =[1]HeroPowerUpConfig!J161 -> 230 | D161: =[1]HeroPowerUpConfig!K161 -> 235 | E161: =[1]HeroPowerUpConfig!L161 -> 244 | F161: 合体期 | G161: 前 | H161: 7 | I161: =[2]主表!P159*(1+T161) -> 13782.61707 | J161: =[2]主表!Q159 -> 167.615 | K161: =[2]主表!R159 -> 167.615 | L161: =[2]主表!S159 -> 0 | M161: =[2]主表!$G159 -> 33523 | N161: 157 | O161: 4 | P161: 79 | Q161: 4 | R161: 105.7 | S161: 1 | T161: 0.3
A162: 158 | B162: 158 | C162: =[1]HeroPowerUpConfig!J162 -> 230 | D162: =[1]HeroPowerUpConfig!K162 -> 235 | E162: =[1]HeroPowerUpConfig!L162 -> 245 | F162: 合体期 | G162: 前 | H162: 8 | I162: =[2]主表!P160*(1+T162) -> 14065.80358 | J162: =[2]主表!Q160 -> 170.055 | K162: =[2]主表!R160 -> 170.055 | L162: =[2]主表!S160 -> 0 | M162: =[2]主表!$G160 -> 34011 | N162: 158 | O162: 4 | P162: 79 | Q162: 4 | R162: 105.8 | S162: 1 | T162: 0.3
A163: 159 | B163: 159 | C163: =[1]HeroPowerUpConfig!J163 -> 230 | D163: =[1]HeroPowerUpConfig!K163 -> 235 | E163: =[1]HeroPowerUpConfig!L163 -> 246 | F163: 合体期 | G163: 前 | H163: 9 | I163: =[2]主表!P161*(1+T163) -> 14354.27096 | J163: =[2]主表!Q161 -> 172.53 | K163: =[2]主表!R161 -> 172.53 | L163: =[2]主表!S161 -> 0 | M163: =[2]主表!$G161 -> 34506 | N163: 159 | O163: 4 | P163: 80 | Q163: 4 | R163: 105.9 | S163: 1 | T163: 0.3
A164: 160 | B164: 160 | C164: =[1]HeroPowerUpConfig!J164 -> 230 | D164: =[1]HeroPowerUpConfig!K164 -> 235 | E164: =[1]HeroPowerUpConfig!L164 -> 247 | F164: 合体期 | G164: 前 | H164: 10 | I164: =[2]主表!P162*(1+T164) -> 14648.48861 | J164: =[2]主表!Q162 -> 175.045 | K164: =[2]主表!R162 -> 175.045 | L164: =[2]主表!S162 -> 175.05 | M164: =[2]主表!$G162 -> 35009 | N164: 160 | O164: 4 | P164: 80 | Q164: 4 | R164: 106 | S164: 1 | T164: 0.3
A165: 161 | B165: 161 | C165: =[1]HeroPowerUpConfig!J165 -> 230 | D165: =[1]HeroPowerUpConfig!K165 -> 236 | E165: =[1]HeroPowerUpConfig!L165 -> 238 | F165: 合体期 | G165: 中 | H165: 1 | I165: =[2]主表!P163*(1+T165) -> 16570.88315 | J165: =[2]主表!Q163 -> 196.875 | K165: =[2]主表!R163 -> 196.875 | L165: =[2]主表!S163 -> 196.88 | M165: =[2]主表!$G163 -> 39375 | N165: 161 | O165: 4 | P165: 81 | Q165: 4 | R165: 106.1 | S165: 1 | T165: 0.3
A166: 162 | B166: 162 | C166: =[1]HeroPowerUpConfig!J166 -> 230 | D166: =[1]HeroPowerUpConfig!K166 -> 236 | E166: =[1]HeroPowerUpConfig!L166 -> 239 | F166: 合体期 | G166: 中 | H166: 2 | I166: =[2]主表!P164*(1+T166) -> 16906.02678 | J166: =[2]主表!Q164 -> 199.705 | K166: =[2]主表!R164 -> 199.705 | L166: =[2]主表!S164 -> 199.71 | M166: =[2]主表!$G164 -> 39941 | N166: 162 | O166: 4 | P166: 81 | Q166: 4 | R166: 106.2 | S166: 1 | T166: 0.3
A167: 163 | B167: 163 | C167: =[1]HeroPowerUpConfig!J167 -> 230 | D167: =[1]HeroPowerUpConfig!K167 -> 236 | E167: =[1]HeroPowerUpConfig!L167 -> 240 | F167: 合体期 | G167: 中 | H167: 3 | I167: =[2]主表!P165*(1+T167) -> 17247.32358 | J167: =[2]主表!Q165 -> 202.575 | K167: =[2]主表!R165 -> 202.575 | L167: =[2]主表!S165 -> 202.58 | M167: =[2]主表!$G165 -> 40515 | N167: 163 | O167: 4 | P167: 82 | Q167: 4 | R167: 106.3 | S167: 1 | T167: 0.3
A168: 164 | B168: 164 | C168: =[1]HeroPowerUpConfig!J168 -> 230 | D168: =[1]HeroPowerUpConfig!K168 -> 236 | E168: =[1]HeroPowerUpConfig!L168 -> 241 | F168: 合体期 | G168: 中 | H168: 4 | I168: =[2]主表!P166*(1+T168) -> 17595.68807 | J168: =[2]主表!Q166 -> 205.495 | K168: =[2]主表!R166 -> 205.495 | L168: =[2]主表!S166 -> 205.5 | M168: =[2]主表!$G166 -> 41099 | N168: 164 | O168: 4 | P168: 82 | Q168: 4 | R168: 106.4 | S168: 1 | T168: 0.3
A169: 165 | B169: 165 | C169: =[1]HeroPowerUpConfig!J169 -> 230 | D169: =[1]HeroPowerUpConfig!K169 -> 236 | E169: =[1]HeroPowerUpConfig!L169 -> 242 | F169: 合体期 | G169: 中 | H169: 5 | I169: =[2]主表!P167*(1+T169) -> 17950.33195 | J169: =[2]主表!Q167 -> 208.455 | K169: =[2]主表!R167 -> 208.455 | L169: =[2]主表!S167 -> 208.46 | M169: =[2]主表!$G167 -> 41691 | N169: 165 | O169: 4 | P169: 83 | Q169: 4 | R169: 106.5 | S169: 1 | T169: 0.3
A170: 166 | B170: 166 | C170: =[1]HeroPowerUpConfig!J170 -> 230 | D170: =[1]HeroPowerUpConfig!K170 -> 236 | E170: =[1]HeroPowerUpConfig!L170 -> 243 | F170: 合体期 | G170: 中 | H170: 6 | I170: =[2]主表!P168*(1+T170) -> 18312.17944 | J170: =[2]主表!Q168 -> 211.465 | K170: =[2]主表!R168 -> 211.465 | L170: =[2]主表!S168 -> 211.47 | M170: =[2]主表!$G168 -> 42293 | N170: 166 | O170: 4 | P170: 83 | Q170: 4 | R170: 106.6 | S170: 1 | T170: 0.3
A171: 167 | B171: 167 | C171: =[1]HeroPowerUpConfig!J171 -> 230 | D171: =[1]HeroPowerUpConfig!K171 -> 236 | E171: =[1]HeroPowerUpConfig!L171 -> 244 | F171: 合体期 | G171: 中 | H171: 7 | I171: =[2]主表!P169*(1+T171) -> 18680.43254 | J171: =[2]主表!Q169 -> 214.515 | K171: =[2]主表!R169 -> 214.515 | L171: =[2]主表!S169 -> 214.52 | M171: =[2]主表!$G169 -> 42903 | N171: 167 | O171: 4 | P171: 84 | Q171: 4 | R171: 106.7 | S171: 1 | T171: 0.3
A172: 168 | B172: 168 | C172: =[1]HeroPowerUpConfig!J172 -> 230 | D172: =[1]HeroPowerUpConfig!K172 -> 236 | E172: =[1]HeroPowerUpConfig!L172 -> 245 | F172: 合体期 | G172: 中 | H172: 8 | I172: =[2]主表!P170*(1+T172) -> 19056.463 | J172: =[2]主表!Q170 -> 217.62 | K172: =[2]主表!R170 -> 217.62 | L172: =[2]主表!S170 -> 217.62 | M172: =[2]主表!$G170 -> 43524 | N172: 168 | O172: 4 | P172: 84 | Q172: 4 | R172: 106.8 | S172: 1 | T172: 0.3
A173: 169 | B173: 169 | C173: =[1]HeroPowerUpConfig!J173 -> 230 | D173: =[1]HeroPowerUpConfig!K173 -> 236 | E173: =[1]HeroPowerUpConfig!L173 -> 246 | F173: 合体期 | G173: 中 | H173: 9 | I173: =[2]主表!P171*(1+T173) -> 19439.03014 | J173: =[2]主表!Q171 -> 220.765 | K173: =[2]主表!R171 -> 220.765 | L173: =[2]主表!S171 -> 220.77 | M173: =[2]主表!$G171 -> 44153 | N173: 169 | O173: 4 | P173: 85 | Q173: 4 | R173: 106.9 | S173: 1 | T173: 0.3
A174: 170 | B174: 170 | C174: =[1]HeroPowerUpConfig!J174 -> 230 | D174: =[1]HeroPowerUpConfig!K174 -> 236 | E174: =[1]HeroPowerUpConfig!L174 -> 247 | F174: 合体期 | G174: 中 | H174: 10 | I174: =[2]主表!P172*(1+T174) -> 19829.52028 | J174: =[2]主表!Q172 -> 223.965 | K174: =[2]主表!R172 -> 223.965 | L174: =[2]主表!S172 -> 246.36 | M174: =[2]主表!$G172 -> 44793 | N174: 170 | O174: 4 | P174: 85 | Q174: 4 | R174: 107 | S174: 1 | T174: 0.3
A175: 171 | B175: 171 | C175: =[1]HeroPowerUpConfig!J175 -> 230 | D175: =[1]HeroPowerUpConfig!K175 -> 237 | E175: =[1]HeroPowerUpConfig!L175 -> 238 | F175: 合体期 | G175: 后 | H175: 1 | I175: =[2]主表!P173*(1+T175) -> 22422.45298 | J175: =[2]主表!Q173 -> 251.87 | K175: =[2]主表!R173 -> 251.87 | L175: =[2]主表!S173 -> 277.06 | M175: =[2]主表!$G173 -> 50374 | N175: 171 | O175: 4 | P175: 86 | Q175: 4 | R175: 107.1 | S175: 1 | T175: 0.3
A176: 172 | B176: 172 | C176: =[1]HeroPowerUpConfig!J176 -> 230 | D176: =[1]HeroPowerUpConfig!K176 -> 237 | E176: =[1]HeroPowerUpConfig!L176 -> 239 | F176: 合体期 | G176: 后 | H176: 2 | I176: =[2]主表!P174*(1+T176) -> 22866.50554 | J176: =[2]主表!Q174 -> 255.465 | K176: =[2]主表!R174 -> 255.465 | L176: =[2]主表!S174 -> 281.01 | M176: =[2]主表!$G174 -> 51093 | N176: 172 | O176: 4 | P176: 86 | Q176: 4 | R176: 107.2 | S176: 1 | T176: 0.3
A177: 173 | B177: 173 | C177: =[1]HeroPowerUpConfig!J177 -> 230 | D177: =[1]HeroPowerUpConfig!K177 -> 237 | E177: =[1]HeroPowerUpConfig!L177 -> 240 | F177: 合体期 | G177: 后 | H177: 3 | I177: =[2]主表!P175*(1+T177) -> 23318.9981 | J177: =[2]主表!Q175 -> 259.115 | K177: =[2]主表!R175 -> 259.115 | L177: =[2]主表!S175 -> 285.03 | M177: =[2]主表!$G175 -> 51823 | N177: 173 | O177: 4 | P177: 87 | Q177: 4 | R177: 107.3 | S177: 1 | T177: 0.3
A178: 174 | B178: 174 | C178: =[1]HeroPowerUpConfig!J178 -> 230 | D178: =[1]HeroPowerUpConfig!K178 -> 237 | E178: =[1]HeroPowerUpConfig!L178 -> 241 | F178: 合体期 | G178: 后 | H178: 4 | I178: =[2]主表!P176*(1+T178) -> 23780.46314 | J178: =[2]主表!Q176 -> 262.825 | K178: =[2]主表!R176 -> 262.825 | L178: =[2]主表!S176 -> 289.11 | M178: =[2]主表!$G176 -> 52565 | N178: 174 | O178: 4 | P178: 87 | Q178: 4 | R178: 107.4 | S178: 1 | T178: 0.3
A179: 175 | B179: 175 | C179: =[1]HeroPowerUpConfig!J179 -> 230 | D179: =[1]HeroPowerUpConfig!K179 -> 237 | E179: =[1]HeroPowerUpConfig!L179 -> 242 | F179: 合体期 | G179: 后 | H179: 5 | I179: =[2]主表!P177*(1+T179) -> 24250.07838 | J179: =[2]主表!Q177 -> 266.585 | K179: =[2]主表!R177 -> 266.585 | L179: =[2]主表!S177 -> 293.24 | M179: =[2]主表!$G177 -> 53317 | N179: 175 | O179: 4 | P179: 88 | Q179: 4 | R179: 107.5 | S179: 1 | T179: 0.3
A180: 176 | B180: 176 | C180: =[1]HeroPowerUpConfig!J180 -> 230 | D180: =[1]HeroPowerUpConfig!K180 -> 237 | E180: =[1]HeroPowerUpConfig!L180 -> 243 | F180: 合体期 | G180: 后 | H180: 6 | I180: =[2]主表!P178*(1+T180) -> 24729.28842 | J180: =[2]主表!Q178 -> 270.41 | K180: =[2]主表!R178 -> 270.41 | L180: =[2]主表!S178 -> 297.45 | M180: =[2]主表!$G178 -> 54082 | N180: 176 | O180: 4 | P180: 88 | Q180: 4 | R180: 107.6 | S180: 1 | T180: 0.3
A181: 177 | B181: 177 | C181: =[1]HeroPowerUpConfig!J181 -> 230 | D181: =[1]HeroPowerUpConfig!K181 -> 237 | E181: =[1]HeroPowerUpConfig!L181 -> 244 | F181: 合体期 | G181: 后 | H181: 7 | I181: =[2]主表!P179*(1+T181) -> 25217.26855 | J181: =[2]主表!Q179 -> 274.29 | K181: =[2]主表!R179 -> 274.29 | L181: =[2]主表!S179 -> 301.72 | M181: =[2]主表!$G179 -> 54858 | N181: 177 | O181: 4 | P181: 89 | Q181: 4 | R181: 107.7 | S181: 1 | T181: 0.3
A182: 178 | B182: 178 | C182: =[1]HeroPowerUpConfig!J182 -> 230 | D182: =[1]HeroPowerUpConfig!K182 -> 237 | E182: =[1]HeroPowerUpConfig!L182 -> 245 | F182: 合体期 | G182: 后 | H182: 8 | I182: =[2]主表!P180*(1+T182) -> 25714.56096 | J182: =[2]主表!Q180 -> 278.23 | K182: =[2]主表!R180 -> 278.23 | L182: =[2]主表!S180 -> 306.05 | M182: =[2]主表!$G180 -> 55646 | N182: 178 | O182: 4 | P182: 89 | Q182: 4 | R182: 107.8 | S182: 1 | T182: 0.3
A183: 179 | B183: 179 | C183: =[1]HeroPowerUpConfig!J183 -> 230 | D183: =[1]HeroPowerUpConfig!K183 -> 237 | E183: =[1]HeroPowerUpConfig!L183 -> 246 | F183: 合体期 | G183: 后 | H183: 9 | I183: =[2]主表!P181*(1+T183) -> 26221.25305 | J183: =[2]主表!Q181 -> 282.23 | K183: =[2]主表!R181 -> 282.23 | L183: =[2]主表!S181 -> 310.45 | M183: =[2]主表!$G181 -> 56446 | N183: 179 | O183: 4 | P183: 90 | Q183: 4 | R183: 107.9 | S183: 1 | T183: 0.3
A184: 180 | B184: 180 | C184: =[1]HeroPowerUpConfig!J184 -> 230 | D184: =[1]HeroPowerUpConfig!K184 -> 237 | E184: =[1]HeroPowerUpConfig!L184 -> 247 | F184: 合体期 | G184: 后 | H184: 10 | I184: =[2]主表!P182*(1+T184) -> 26737.89914 | J184: =[2]主表!Q182 -> 286.295 | K184: =[2]主表!R182 -> 286.295 | L184: =[2]主表!S182 -> 343.55 | M184: =[2]主表!$G182 -> 57259 | N184: 180 | O184: 4 | P184: 90 | Q184: 4 | R184: 108 | S184: 1 | T184: 0.3
A185: 181 | B185: 181 | C185: =[1]HeroPowerUpConfig!J185 -> 231 | D185: =[1]HeroPowerUpConfig!K185 -> 235 | E185: =[1]HeroPowerUpConfig!L185 -> 238 | F185: 大乘期 | G185: 前 | H185: 1 | I185: =[2]主表!P183*(1+T185) -> 35754.47443 | J185: =[2]主表!Q183 -> 380.86 | K185: =[2]主表!R183 -> 380.86 | L185: =[2]主表!S183 -> 457.03 | M185: =[2]主表!$G183 -> 76172 | N185: 181 | O185: 4 | P185: 91 | Q185: 4 | R185: 108.1 | S185: 1 | T185: 0.3
A186: 182 | B186: 182 | C186: =[1]HeroPowerUpConfig!J186 -> 231 | D186: =[1]HeroPowerUpConfig!K186 -> 235 | E186: =[1]HeroPowerUpConfig!L186 -> 239 | F186: 大乘期 | G186: 前 | H186: 2 | I186: =[2]主表!P184*(1+T186) -> 36485.72292 | J186: =[2]主表!Q184 -> 386.65 | K186: =[2]主表!R184 -> 386.65 | L186: =[2]主表!S184 -> 463.98 | M186: =[2]主表!$G184 -> 77330 | N186: 182 | O186: 4 | P186: 91 | Q186: 4 | R186: 108.2 | S186: 1 | T186: 0.3
A187: 183 | B187: 183 | C187: =[1]HeroPowerUpConfig!J187 -> 231 | D187: =[1]HeroPowerUpConfig!K187 -> 235 | E187: =[1]HeroPowerUpConfig!L187 -> 240 | F187: 大乘期 | G187: 前 | H187: 3 | I187: =[2]主表!P185*(1+T187) -> 37231.12917 | J187: =[2]主表!Q185 -> 392.53 | K187: =[2]主表!R185 -> 392.53 | L187: =[2]主表!S185 -> 471.04 | M187: =[2]主表!$G185 -> 78506 | N187: 183 | O187: 4 | P187: 92 | Q187: 4 | R187: 108.3 | S187: 1 | T187: 0.3
A188: 184 | B188: 184 | C188: =[1]HeroPowerUpConfig!J188 -> 231 | D188: =[1]HeroPowerUpConfig!K188 -> 235 | E188: =[1]HeroPowerUpConfig!L188 -> 241 | F188: 大乘期 | G188: 前 | H188: 4 | I188: =[2]主表!P186*(1+T188) -> 37991.30091 | J188: =[2]主表!Q186 -> 398.505 | K188: =[2]主表!R186 -> 398.505 | L188: =[2]主表!S186 -> 478.21 | M188: =[2]主表!$G186 -> 79701 | N188: 184 | O188: 4 | P188: 92 | Q188: 4 | R188: 108.4 | S188: 1 | T188: 0.3
A189: 185 | B189: 185 | C189: =[1]HeroPowerUpConfig!J189 -> 231 | D189: =[1]HeroPowerUpConfig!K189 -> 235 | E189: =[1]HeroPowerUpConfig!L189 -> 242 | F189: 大乘期 | G189: 前 | H189: 5 | I189: =[2]主表!P187*(1+T189) -> 38765.8974 | J189: =[2]主表!Q187 -> 404.57 | K189: =[2]主表!R187 -> 404.57 | L189: =[2]主表!S187 -> 485.48 | M189: =[2]主表!$G187 -> 80914 | N189: 185 | O189: 4 | P189: 93 | Q189: 4 | R189: 108.5 | S189: 1 | T189: 0.3
A190: 186 | B190: 186 | C190: =[1]HeroPowerUpConfig!J190 -> 231 | D190: =[1]HeroPowerUpConfig!K190 -> 235 | E190: =[1]HeroPowerUpConfig!L190 -> 243 | F190: 大乘期 | G190: 前 | H190: 6 | I190: =[2]主表!P188*(1+T190) -> 39572.38468 | J190: =[2]主表!Q188 -> 410.905 | K190: =[2]主表!R188 -> 410.905 | L190: =[2]主表!S188 -> 493.09 | M190: =[2]主表!$G188 -> 82181 | N190: 186 | O190: 4 | P190: 93 | Q190: 4 | R190: 108.6 | S190: 1 | T190: 0.3
A191: 187 | B191: 187 | C191: =[1]HeroPowerUpConfig!J191 -> 231 | D191: =[1]HeroPowerUpConfig!K191 -> 235 | E191: =[1]HeroPowerUpConfig!L191 -> 244 | F191: 大乘期 | G191: 前 | H191: 7 | I191: =[2]主表!P189*(1+T191) -> 40394.7015 | J191: =[2]主表!Q189 -> 417.34 | K191: =[2]主表!R189 -> 417.34 | L191: =[2]主表!S189 -> 500.81 | M191: =[2]主表!$G189 -> 83468 | N191: 187 | O191: 4 | P191: 94 | Q191: 4 | R191: 108.7 | S191: 1 | T191: 0.3
A192: 188 | B192: 188 | C192: =[1]HeroPowerUpConfig!J192 -> 231 | D192: =[1]HeroPowerUpConfig!K192 -> 235 | E192: =[1]HeroPowerUpConfig!L192 -> 245 | F192: 大乘期 | G192: 前 | H192: 8 | I192: =[2]主表!P190*(1+T192) -> 41233.47989 | J192: =[2]主表!Q190 -> 423.88 | K192: =[2]主表!R190 -> 423.88 | L192: =[2]主表!S190 -> 508.66 | M192: =[2]主表!$G190 -> 84776 | N192: 188 | O192: 4 | P192: 94 | Q192: 4 | R192: 108.8 | S192: 1 | T192: 0.3
A193: 189 | B193: 189 | C193: =[1]HeroPowerUpConfig!J193 -> 231 | D193: =[1]HeroPowerUpConfig!K193 -> 235 | E193: =[1]HeroPowerUpConfig!L193 -> 246 | F193: 大乘期 | G193: 前 | H193: 9 | I193: =[2]主表!P191*(1+T193) -> 42088.38393 | J193: =[2]主表!Q191 -> 430.52 | K193: =[2]主表!R191 -> 430.52 | L193: =[2]主表!S191 -> 516.62 | M193: =[2]主表!$G191 -> 86104 | N193: 189 | O193: 4 | P193: 95 | Q193: 4 | R193: 108.9 | S193: 1 | T193: 0.3
A194: 190 | B194: 190 | C194: =[1]HeroPowerUpConfig!J194 -> 231 | D194: =[1]HeroPowerUpConfig!K194 -> 235 | E194: =[1]HeroPowerUpConfig!L194 -> 247 | F194: 大乘期 | G194: 前 | H194: 10 | I194: =[2]主表!P192*(1+T194) -> 42960.54174 | J194: =[2]主表!Q192 -> 437.27 | K194: =[2]主表!R192 -> 437.27 | L194: =[2]主表!S192 -> 568.45 | M194: =[2]主表!$G192 -> 87454 | N194: 190 | O194: 4 | P194: 95 | Q194: 4 | R194: 109 | S194: 1 | T194: 0.3
A195: 191 | B195: 191 | C195: =[1]HeroPowerUpConfig!J195 -> 231 | D195: =[1]HeroPowerUpConfig!K195 -> 236 | E195: =[1]HeroPowerUpConfig!L195 -> 238 | F195: 大乘期 | G195: 中 | H195: 1 | I195: =[2]主表!P193*(1+T195) -> 48609.5189 | J195: =[2]主表!Q193 -> 492.335 | K195: =[2]主表!R193 -> 492.335 | L195: =[2]主表!S193 -> 640.04 | M195: =[2]主表!$G193 -> 98467 | N195: 191 | O195: 4 | P195: 96 | Q195: 4 | R195: 109.1 | S195: 1 | T195: 0.3
A196: 192 | B196: 192 | C196: =[1]HeroPowerUpConfig!J196 -> 231 | D196: =[1]HeroPowerUpConfig!K196 -> 236 | E196: =[1]HeroPowerUpConfig!L196 -> 239 | F196: 大乘期 | G196: 中 | H196: 2 | I196: =[2]主表!P194*(1+T196) -> 49603.06866 | J196: =[2]主表!Q194 -> 499.94 | K196: =[2]主表!R194 -> 499.94 | L196: =[2]主表!S194 -> 649.92 | M196: =[2]主表!$G194 -> 99988 | N196: 192 | O196: 4 | P196: 96 | Q196: 4 | R196: 109.2 | S196: 1 | T196: 0.3
A197: 193 | B197: 193 | C197: =[1]HeroPowerUpConfig!J197 -> 231 | D197: =[1]HeroPowerUpConfig!K197 -> 236 | E197: =[1]HeroPowerUpConfig!L197 -> 240 | F197: 大乘期 | G197: 中 | H197: 3 | I197: =[2]主表!P195*(1+T197) -> 50615.96629 | J197: =[2]主表!Q195 -> 507.665 | K197: =[2]主表!R195 -> 507.665 | L197: =[2]主表!S195 -> 659.96 | M197: =[2]主表!$G195 -> 101533 | N197: 193 | O197: 4 | P197: 97 | Q197: 4 | R197: 109.3 | S197: 1 | T197: 0.3
A198: 194 | B198: 194 | C198: =[1]HeroPowerUpConfig!J198 -> 231 | D198: =[1]HeroPowerUpConfig!K198 -> 236 | E198: =[1]HeroPowerUpConfig!L198 -> 241 | F198: 大乘期 | G198: 中 | H198: 4 | I198: =[2]主表!P196*(1+T198) -> 51648.88751 | J198: =[2]主表!Q196 -> 515.515 | K198: =[2]主表!R196 -> 515.515 | L198: =[2]主表!S196 -> 670.17 | M198: =[2]主表!$G196 -> 103103 | N198: 194 | O198: 4 | P198: 97 | Q198: 4 | R198: 109.4 | S198: 1 | T198: 0.3
A199: 195 | B199: 195 | C199: =[1]HeroPowerUpConfig!J199 -> 231 | D199: =[1]HeroPowerUpConfig!K199 -> 236 | E199: =[1]HeroPowerUpConfig!L199 -> 242 | F199: 大乘期 | G199: 中 | H199: 5 | I199: =[2]主表!P197*(1+T199) -> 52702.51772 | J199: =[2]主表!Q197 -> 523.495 | K199: =[2]主表!R197 -> 523.495 | L199: =[2]主表!S197 -> 680.54 | M199: =[2]主表!$G197 -> 104699 | N199: 195 | O199: 4 | P199: 98 | Q199: 4 | R199: 109.5 | S199: 1 | T199: 0.3
A200: 196 | B200: 196 | C200: =[1]HeroPowerUpConfig!J200 -> 231 | D200: =[1]HeroPowerUpConfig!K200 -> 236 | E200: =[1]HeroPowerUpConfig!L200 -> 243 | F200: 大乘期 | G200: 中 | H200: 6 | I200: =[2]主表!P198*(1+T200) -> 53776.03464 | J200: =[2]主表!Q198 -> 531.595 | K200: =[2]主表!R198 -> 531.595 | L200: =[2]主表!S198 -> 691.07 | M200: =[2]主表!$G198 -> 106319 | N200: 196 | O200: 4 | P200: 98 | Q200: 4 | R200: 109.6 | S200: 1 | T200: 0.3
A201: 197 | B201: 197 | C201: =[1]HeroPowerUpConfig!J201 -> 231 | D201: =[1]HeroPowerUpConfig!K201 -> 236 | E201: =[1]HeroPowerUpConfig!L201 -> 244 | F201: 大乘期 | G201: 中 | H201: 7 | I201: =[2]主表!P199*(1+T201) -> 54871.1377 | J201: =[2]主表!Q199 -> 539.83 | K201: =[2]主表!R199 -> 539.83 | L201: =[2]主表!S199 -> 701.78 | M201: =[2]主表!$G199 -> 107966 | N201: 197 | O201: 4 | P201: 99 | Q201: 4 | R201: 109.7 | S201: 1 | T201: 0.3
... 103 more rows
